Workbook

Sheet Expenditure
B2: MONTHLY CAPITAL EXPENDITURE FOR THE 1st Quarter Ended 30 September 2025
B3: R thousands | C3: Code | D3: Original Budget | E3: Adjusted Budget | F3: YTD Actual | G3: % | H3: Month 1 July Actual | I3: Month 2 August Actual | J3: Month 3 September Actual | K3: Quarter 1 July - Sept Actual | L3: Month 4 October Actual | M3: Month 5 November Actual | N3: Month 6 December Actual | O3: Quarter 2 Oct - Dec Actual | P3: Month 7 January Actual | Q3: Month 8 February Actual | R3: Month 9 March Actual | S3: Quarter 3 Jan - March Actual | T3: Month 10 April Actual | U3: Month 11 May Actual | V3: Month 12 June Actual | W3: Quarter 4 April - June Actual
B5: EASTERN CAPE
A6: A | B6: Buffalo City | C6: BUF | D6: 1159708535 | E6: 1256224746 | F6: 118909850 | G6: =IF(($D6 =0),0,($F6 /$D6 )) -> 0.1025342544 | H6: 235 | I6: 45706922 | J6: 73202693 | K6: 118909850 | L6: 0 | M6: 0 | N6: 0 | O6: 0 | P6: 0 | Q6: 0 | R6: 0 | S6: 0 | T6: 0 | U6: 0 | V6: 0 | W6: 0
A7: A | B7: Nelson Mandela Bay | C7: NMA | D7: 2150127530 | E7: 2150127530 | F7: 84255285 | G7: =IF(($D7 =0),0,($F7 /$D7 )) -> 0.03918618027 | H7: 10792514 | I7: 0 | J7: 73462771 | K7: 84255285 | L7: 0 | M7: 0 | N7: 0 | O7: 0 | P7: 0 | Q7: 0 | R7: 0 | S7: 0 | T7: 0 | U7: 0 | V7: 0 | W7: 0
B8: Total Metros | D8: =SUM(D6:D7) -> 3309836065 | E8: =SUM(E6:E7) -> 3406352276 | F8: =SUM(F6:F7) -> 203165135 | G8: =IF(($D8 =0),0,($F8 /$D8 )) -> 0.06138223495 | H8: =SUM(H6:H7) -> 10792749 | I8: =SUM(I6:I7) -> 45706922 | J8: =SUM(J6:J7) -> 146665464 | K8: =SUM(K6:K7) -> 203165135 | L8: =SUM(L6:L7) -> 0 | M8: =SUM(M6:M7) -> 0 | N8: =SUM(N6:N7) -> 0 | O8: =SUM(O6:O7) -> 0 | P8: =SUM(P6:P7) -> 0 | Q8: =SUM(Q6:Q7) -> 0 | R8: =SUM(R6:R7) -> 0 | S8: =SUM(S6:S7) -> 0 | T8: =SUM(T6:T7) -> 0 | U8: =SUM(U6:U7) -> 0 | V8: =SUM(V6:V7) -> 0 | W8: =SUM(W6:W7) -> 0
A9: B | B9: Dr Beyers Naude | C9: EC101 | D9: 112867059 | E9: 112867059 | F9: 37002618 | G9: =IF(($D9 =0),0,($F9 /$D9 )) -> 0.327842493 | H9: 36712493 | I9: -3616613 | J9: 3906738 | K9: 37002618 | L9: 0 | M9: 0 | N9: 0 | O9: 0 | P9: 0 | Q9: 0 | R9: 0 | S9: 0 | T9: 0 | U9: 0 | V9: 0 | W9: 0
A10: B | B10: Blue Crane Route | C10: EC102 | D10: 58791930 | E10: 61638459 | F10: 11620150 | G10: =IF(($D10 =0),0,($F10 /$D10 )) -> 0.1976487249 | H10: 1947505 | I10: 5896664 | J10: 3775981 | K10: 11620150 | L10: 0 | M10: 0 | N10: 0 | O10: 0 | P10: 0 | Q10: 0 | R10: 0 | S10: 0 | T10: 0 | U10: 0 | V10: 0 | W10: 0
A11: B | B11: Makana | C11: EC104 | D11: 114399571 | E11: 114399571 | F11: 14102397 | G11: =IF(($D11 =0),0,($F11 /$D11 )) -> 0.1232731633 | H11: 0 | I11: 13048482 | J11: 1053915 | K11: 14102397 | L11: 0 | M11: 0 | N11: 0 | O11: 0 | P11: 0 | Q11: 0 | R11: 0 | S11: 0 | T11: 0 | U11: 0 | V11: 0 | W11: 0
A12: B | B12: Ndlambe | C12: EC105 | D12: 158518240 | E12: 158518240 | F12: 49279733 | G12: =IF(($D12 =0),0,($F12 /$D12 )) -> 0.3108773665 | H12: 3632280 | I12: 17795913 | J12: 27851540 | K12: 49279733 | L12: 0 | M12: 0 | N12: 0 | O12: 0 | P12: 0 | Q12: 0 | R12: 0 | S12: 0 | T12: 0 | U12: 0 | V12: 0 | W12: 0
A13: B | B13: Sundays River Valley | C13: EC106 | D13: 48143077 | E13: 48143077 | F13: 46512017 | G13: =IF(($D13 =0),0,($F13 /$D13 )) -> 0.9661205701 | H13: 35176989 | I13: 4799757 | J13: 6535271 | K13: 46512017 | L13: 0 | M13: 0 | N13: 0 | O13: 0 | P13: 0 | Q13: 0 | R13: 0 | S13: 0 | T13: 0 | U13: 0 | V13: 0 | W13: 0
A14: B | B14: Kouga | C14: EC108 | D14: 265462280 | E14: 293296300 | F14: 12933049 | G14: =IF(($D14 =0),0,($F14 /$D14 )) -> 0.04871897054 | H14: 99750 | I14: 3562694 | J14: 9270605 | K14: 12933049 | L14: 0 | M14: 0 | N14: 0 | O14: 0 | P14: 0 | Q14: 0 | R14: 0 | S14: 0 | T14: 0 | U14: 0 | V14: 0 | W14: 0
A15: B | B15: Kou-Kamma | C15: EC109 | D15: 50608547 | E15: 50608547 | F15: 14203144 | G15: =IF(($D15 =0),0,($F15 /$D15 )) -> 0.2806471405 | H15: 117028 | I15: 6836971 | J15: 7249145 | K15: 14203144 | L15: 0 | M15: 0 | N15: 0 | O15: 0 | P15: 0 | Q15: 0 | R15: 0 | S15: 0 | T15: 0 | U15: 0 | V15: 0 | W15: 0
A16: C | B16: Sarah Baartman | C16: DC10 | D16: 6849100 | E16: 10019100 | F16: 2729602 | G16: =IF(($D16 =0),0,($F16 /$D16 )) -> 0.398534406 | H16: 0 | I16: 105978 | J16: 2623624 | K16: 2729602 | L16: 0 | M16: 0 | N16: 0 | O16: 0 | P16: 0 | Q16: 0 | R16: 0 | S16: 0 | T16: 0 | U16: 0 | V16: 0 | W16: 0
B17: Total Sarah Baartman | D17: =SUM(D9:D16) -> 815639804 | E17: =SUM(E9:E16) -> 849490353 | F17: =SUM(F9:F16) -> 188382710 | G17: =IF(($D17 =0),0,($F17 /$D17 )) -> 0.2309631152 | H17: =SUM(H9:H16) -> 77686045 | I17: =SUM(I9:I16) -> 48429846 | J17: =SUM(J9:J16) -> 62266819 | K17: =SUM(K9:K16) -> 188382710 | L17: =SUM(L9:L16) -> 0 | M17: =SUM(M9:M16) -> 0 | N17: =SUM(N9:N16) -> 0 | O17: =SUM(O9:O16) -> 0 | P17: =SUM(P9:P16) -> 0 | Q17: =SUM(Q9:Q16) -> 0 | R17: =SUM(R9:R16) -> 0 | S17: =SUM(S9:S16) -> 0 | T17: =SUM(T9:T16) -> 0 | U17: =SUM(U9:U16) -> 0 | V17: =SUM(V9:V16) -> 0 | W17: =SUM(W9:W16) -> 0
A18: B | B18: Mbhashe | C18: EC121 | D18: 127591613 | E18: 127591613 | F18: 32006899 | G18: =IF(($D18 =0),0,($F18 /$D18 )) -> 0.2508542548 | H18: 15742175 | I18: 5367949 | J18: 10896775 | K18: 32006899 | L18: 0 | M18: 0 | N18: 0 | O18: 0 | P18: 0 | Q18: 0 | R18: 0 | S18: 0 | T18: 0 | U18: 0 | V18: 0 | W18: 0
A19: B | B19: Mnquma | C19: EC122 | D19: 252618890 | E19: 267434282 | F19: 49768896 | G19: =IF(($D19 =0),0,($F19 /$D19 )) -> 0.1970117753 | H19: 5253891 | I19: 21486195 | J19: 23028810 | K19: 49768896 | L19: 0 | M19: 0 | N19: 0 | O19: 0 | P19: 0 | Q19: 0 | R19: 0 | S19: 0 | T19: 0 | U19: 0 | V19: 0 | W19: 0
A20: B | B20: Great Kei | C20: EC123 | D20: 45276875 | E20: 46788690 | F20: 14222336 | G20: =IF(($D20 =0),0,($F20 /$D20 )) -> 0.3141192054 | H20: 3508502 | I20: 3164413 | J20: 7549421 | K20: 14222336 | L20: 0 | M20: 0 | N20: 0 | O20: 0 | P20: 0 | Q20: 0 | R20: 0 | S20: 0 | T20: 0 | U20: 0 | V20: 0 | W20: 0
A21: B | B21: Amahlathi | C21: EC124 | D21: 92121850 | E21: 92121850 | F21: 11137854 | G21: =IF(($D21 =0),0,($F21 /$D21 )) -> 0.120903499 | H21: 245265 | I21: 3905640 | J21: 6986949 | K21: 11137854 | L21: 0 | M21: 0 | N21: 0 | O21: 0 | P21: 0 | Q21: 0 | R21: 0 | S21: 0 | T21: 0 | U21: 0 | V21: 0 | W21: 0
A22: B | B22: Ngqushwa | C22: EC126 | D22: 49637253 | E22: 49637253 | F22: 12703977 | G22: =IF(($D22 =0),0,($F22 /$D22 )) -> 0.2559363428 | H22: 2720885 | I22: 3120757 | J22: 6862335 | K22: 12703977 | L22: 0 | M22: 0 | N22: 0 | O22: 0 | P22: 0 | Q22: 0 | R22: 0 | S22: 0 | T22: 0 | U22: 0 | V22: 0 | W22: 0
A23: B | B23: Raymond Mhlaba | C23: EC129 | D23: 72624483 | E23: 72624483 | F23: 28830918 | G23: =IF(($D23 =0),0,($F23 /$D23 )) -> 0.3969862064 | H23: 1852530 | I23: 13342705 | J23: 13635683 | K23: 28830918 | L23: 0 | M23: 0 | N23: 0 | O23: 0 | P23: 0 | Q23: 0 | R23: 0 | S23: 0 | T23: 0 | U23: 0 | V23: 0 | W23: 0
A24: C | B24: Amathole | C24: DC12 | D24: 533155331 | E24: 533155331 | F24: 102503672 | G24: =IF(($D24 =0),0,($F24 /$D24 )) -> 0.1922585521 | H24: 35403108 | I24: 19304971 | J24: 47795593 | K24: 102503672 | L24: 0 | M24: 0 | N24: 0 | O24: 0 | P24: 0 | Q24: 0 | R24: 0 | S24: 0 | T24: 0 | U24: 0 | V24: 0 | W24: 0
B25: Total Amathole | D25: =SUM(D18:D24) -> 1173026295 | E25: =SUM(E18:E24) -> 1189353502 | F25: =SUM(F18:F24) -> 251174552 | G25: =IF(($D25 =0),0,($F25 /$D25 )) -> 0.2141252528 | H25: =SUM(H18:H24) -> 64726356 | I25: =SUM(I18:I24) -> 69692630 | J25: =SUM(J18:J24) -> 116755566 | K25: =SUM(K18:K24) -> 251174552 | L25: =SUM(L18:L24) -> 0 | M25: =SUM(M18:M24) -> 0 | N25: =SUM(N18:N24) -> 0 | O25: =SUM(O18:O24) -> 0 | P25: =SUM(P18:P24) -> 0 | Q25: =SUM(Q18:Q24) -> 0 | R25: =SUM(R18:R24) -> 0 | S25: =SUM(S18:S24) -> 0 | T25: =SUM(T18:T24) -> 0 | U25: =SUM(U18:U24) -> 0 | V25: =SUM(V18:V24) -> 0 | W25: =SUM(W18:W24) -> 0
A26: B | B26: Inxuba Yethemba | C26: EC131 | D26: 31734000 | E26: 31734000 | F26: 45825045 | G26: =IF(($D26 =0),0,($F26 /$D26 )) -> 1.444036207 | H26: 49956428 | I26: -9217349 | J26: 5085966 | K26: 45825045 | L26: 0 | M26: 0 | N26: 0 | O26: 0 | P26: 0 | Q26: 0 | R26: 0 | S26: 0 | T26: 0 | U26: 0 | V26: 0 | W26: 0
A27: B | B27: Intsika Yethu | C27: EC135 | D27: 130438309 | E27: 130438309 | F27: 12080746 | G27: =IF(($D27 =0),0,($F27 /$D27 )) -> 0.09261654872 | H27: 264225 | I27: 5905617 | J27: 5910904 | K27: 12080746 | L27: 0 | M27: 0 | N27: 0 | O27: 0 | P27: 0 | Q27: 0 | R27: 0 | S27: 0 | T27: 0 | U27: 0 | V27: 0 | W27: 0
A28: B | B28: Emalahleni (EC) | C28: EC136 | D28: 174617382 | E28: 174617382 | F28: 18871974 | G28: =IF(($D28 =0),0,($F28 /$D28 )) -> 0.1080761479 | H28: 2799797 | I28: 9405267 | J28: 6666910 | K28: 18871974 | L28: 0 | M28: 0 | N28: 0 | O28: 0 | P28: 0 | Q28: 0 | R28: 0 | S28: 0 | T28: 0 | U28: 0 | V28: 0 | W28: 0
A29: B | B29: Dr. A.B. Xuma | C29: EC137 | D29: 126403376 | E29: 126403376 | F29: 41930700 | G29: =IF(($D29 =0),0,($F29 /$D29 )) -> 0.3317213616 | H29: 9594269 | I29: 19245836 | J29: 13090595 | K29: 41930700 | L29: 0 | M29: 0 | N29: 0 | O29: 0 | P29: 0 | Q29: 0 | R29: 0 | S29: 0 | T29: 0 | U29: 0 | V29: 0 | W29: 0
A30: B | B30: Sakhisizwe | C30: EC138 | D30: 75544148 | E30: 75544148 | F30: 97715920 | G30: =IF(($D30 =0),0,($F30 /$D30 )) -> 1.293494236 | H30: 90869650 | I30: 3690851 | J30: 3155419 | K30: 97715920 | L30: 0 | M30: 0 | N30: 0 | O30: 0 | P30: 0 | Q30: 0 | R30: 0 | S30: 0 | T30: 0 | U30: 0 | V30: 0 | W30: 0
A31: B | B31: Enoch Mgijima | C31: EC139 | D31: 126040260 | E31: 126040260 | F31: 21653789 | G31: =IF(($D31 =0),0,($F31 /$D31 )) -> 0.1718005739 | H31: 2147604 | I31: 10983902 | J31: 8522283 | K31: 21653789 | L31: 0 | M31: 0 | N31: 0 | O31: 0 | P31: 0 | Q31: 0 | R31: 0 | S31: 0 | T31: 0 | U31: 0 | V31: 0 | W31: 0
A32: C | B32: Chris Hani | C32: DC13 | D32: 367951198 | E32: 367951198 | F32: 100695896 | G32: =IF(($D32 =0),0,($F32 /$D32 )) -> 0.2736664442 | H32: 32164047 | I32: 26756989 | J32: 41774860 | K32: 100695896 | L32: 0 | M32: 0 | N32: 0 | O32: 0 | P32: 0 | Q32: 0 | R32: 0 | S32: 0 | T32: 0 | U32: 0 | V32: 0 | W32: 0
B33: Total Chris Hani | D33: =SUM(D26:D32) -> 1032728673 | E33: =SUM(E26:E32) -> 1032728673 | F33: =SUM(F26:F32) -> 338774070 | G33: =IF(($D33 =0),0,($F33 /$D33 )) -> 0.3280378272 | H33: =SUM(H26:H32) -> 187796020 | I33: =SUM(I26:I32) -> 66771113 | J33: =SUM(J26:J32) -> 84206937 | K33: =SUM(K26:K32) -> 338774070 | L33: =SUM(L26:L32) -> 0 | M33: =SUM(M26:M32) -> 0 | N33: =SUM(N26:N32) -> 0 | O33: =SUM(O26:O32) -> 0 | P33: =SUM(P26:P32) -> 0 | Q33: =SUM(Q26:Q32) -> 0 | R33: =SUM(R26:R32) -> 0 | S33: =SUM(S26:S32) -> 0 | T33: =SUM(T26:T32) -> 0 | U33: =SUM(U26:U32) -> 0 | V33: =SUM(V26:V32) -> 0 | W33: =SUM(W26:W32) -> 0
A34: B | B34: Elundini | C34: EC141 | D34: 60339060 | E34: 60339060 | F34: 15031737 | G34: =IF(($D34 =0),0,($F34 /$D34 )) -> 0.2491211663 | H34: 4901716 | I34: 7355611 | J34: 2774410 | K34: 15031737 | L34: 0 | M34: 0 | N34: 0 | O34: 0 | P34: 0 | Q34: 0 | R34: 0 | S34: 0 | T34: 0 | U34: 0 | V34: 0 | W34: 0
A35: B | B35: Senqu | C35: EC142 | D35: 135991073 | E35: 135991073 | F35: 18334016 | G35: =IF(($D35 =0),0,($F35 /$D35 )) -> 0.1348177906 | H35: 2859578 | I35: 6998384 | J35: 8476054 | K35: 18334016 | L35: 0 | M35: 0 | N35: 0 | O35: 0 | P35: 0 | Q35: 0 | R35: 0 | S35: 0 | T35: 0 | U35: 0 | V35: 0 | W35: 0
A36: B | B36: Walter Sisulu | C36: EC145 | D36: 39919855 | E36: 39919855 | F36: 5195365 | G36: =IF(($D36 =0),0,($F36 /$D36 )) -> 0.1301448865 | H36: 2700085 | I36: 515150 | J36: 1980130 | K36: 5195365 | L36: 0 | M36: 0 | N36: 0 | O36: 0 | P36: 0 | Q36: 0 | R36: 0 | S36: 0 | T36: 0 | U36: 0 | V36: 0 | W36: 0
A37: C | B37: Joe Gqabi | C37: DC14 | D37: 273663190 | E37: 273663190 | F37: 31364654 | G37: =IF(($D37 =0),0,($F37 /$D37 )) -> 0.1146104231 | H37: 2475542 | I37: 11321285 | J37: 17567827 | K37: 31364654 | L37: 0 | M37: 0 | N37: 0 | O37: 0 | P37: 0 | Q37: 0 | R37: 0 | S37: 0 | T37: 0 | U37: 0 | V37: 0 | W37: 0
B38: Total Joe Gqabi | D38: =SUM(D34:D37) -> 509913178 | E38: =SUM(E34:E37) -> 509913178 | F38: =SUM(F34:F37) -> 69925772 | G38: =IF(($D38 =0),0,($F38 /$D38 )) -> 0.1371327022 | H38: =SUM(H34:H37) -> 12936921 | I38: =SUM(I34:I37) -> 26190430 | J38: =SUM(J34:J37) -> 30798421 | K38: =SUM(K34:K37) -> 69925772 | L38: =SUM(L34:L37) -> 0 | M38: =SUM(M34:M37) -> 0 | N38: =SUM(N34:N37) -> 0 | O38: =SUM(O34:O37) -> 0 | P38: =SUM(P34:P37) -> 0 | Q38: =SUM(Q34:Q37) -> 0 | R38: =SUM(R34:R37) -> 0 | S38: =SUM(S34:S37) -> 0 | T38: =SUM(T34:T37) -> 0 | U38: =SUM(U34:U37) -> 0 | V38: =SUM(V34:V37) -> 0 | W38: =SUM(W34:W37) -> 0
A39: B | B39: Ngquza Hills | C39: EC153 | D39: 137354988 | E39: 137354988 | F39: 29999685 | G39: =IF(($D39 =0),0,($F39 /$D39 )) -> 0.2184098695 | H39: 12645892 | I39: 9313743 | J39: 8040050 | K39: 29999685 | L39: 0 | M39: 0 | N39: 0 | O39: 0 | P39: 0 | Q39: 0 | R39: 0 | S39: 0 | T39: 0 | U39: 0 | V39: 0 | W39: 0
A40: B | B40: Port St Johns | C40: EC154 | D40: 143710254 | E40: 143710254 | F40: -70730528 | G40: =IF(($D40 =0),0,($F40 /$D40 )) -> -0.4921745389 | H40: 89664060 | I40: 13092101 | J40: -173486689 | K40: -70730528 | L40: 0 | M40: 0 | N40: 0 | O40: 0 | P40: 0 | Q40: 0 | R40: 0 | S40: 0 | T40: 0 | U40: 0 | V40: 0 | W40: 0
A41: B | B41: Nyandeni | C41: EC155 | D41: 180526259 | E41: 180526259 | F41: 20333322 | G41: =IF(($D41 =0),0,($F41 /$D41 )) -> 0.1126335975 | H41: 2859164 | I41: -5133530 | J41: 22607688 | K41: 20333322 | L41: 0 | M41: 0 | N41: 0 | O41: 0 | P41: 0 | Q41: 0 | R41: 0 | S41: 0 | T41: 0 | U41: 0 | V41: 0 | W41: 0
A42: B | B42: Mhlontlo | C42: EC156 | D42: 129825175 | E42: 129825175 | F42: 176130090 | G42: =IF(($D42 =0),0,($F42 /$D42 )) -> 1.356671308 | H42: 134004485 | I42: 33636107 | J42: 8489498 | K42: 176130090 | L42: 0 | M42: 0 | N42: 0 | O42: 0 | P42: 0 | Q42: 0 | R42: 0 | S42: 0 | T42: 0 | U42: 0 | V42: 0 | W42: 0
A43: B | B43: King Sabata Dalindyebo | C43: EC157 | D43: 199507186 | E43: 199507186 | F43: 59630500 | G43: =IF(($D43 =0),0,($F43 /$D43 )) -> 0.2988889834 | H43: 16074996 | I43: 23536144 | J43: 20019360 | K43: 59630500 | L43: 0 | M43: 0 | N43: 0 | O43: 0 | P43: 0 | Q43: 0 | R43: 0 | S43: 0 | T43: 0 | U43: 0 | V43: 0 | W43: 0
A44: C | B44: O R Tambo | C44: DC15 | D44: 1369537463 | E44: 1392537463 | F44: 184903542 | G44: =IF(($D44 =0),0,($F44 /$D44 )) -> 0.1350116715 | H44: 47902330 | I44: 54259813 | J44: 82741399 | K44: 184903542 | L44: 0 | M44: 0 | N44: 0 | O44: 0 | P44: 0 | Q44: 0 | R44: 0 | S44: 0 | T44: 0 | U44: 0 | V44: 0 | W44: 0
B45: Total O .R. Tambo | D45: =SUM(D39:D44) -> 2160461325 | E45: =SUM(E39:E44) -> 2183461325 | F45: =SUM(F39:F44) -> 400266611 | G45: =IF(($D45 =0),0,($F45 /$D45 )) -> 0.1852690471 | H45: =SUM(H39:H44) -> 303150927 | I45: =SUM(I39:I44) -> 128704378 | J45: =SUM(J39:J44) -> -31588694 | K45: =SUM(K39:K44) -> 400266611 | L45: =SUM(L39:L44) -> 0 | M45: =SUM(M39:M44) -> 0 | N45: =SUM(N39:N44) -> 0 | O45: =SUM(O39:O44) -> 0 | P45: =SUM(P39:P44) -> 0 | Q45: =SUM(Q39:Q44) -> 0 | R45: =SUM(R39:R44) -> 0 | S45: =SUM(S39:S44) -> 0 | T45: =SUM(T39:T44) -> 0 | U45: =SUM(U39:U44) -> 0 | V45: =SUM(V39:V44) -> 0 | W45: =SUM(W39:W44) -> 0
A46: B | B46: Matatiele | C46: EC441 | D46: 163364950 | E46: 180750616 | F46: 37996458 | G46: =IF(($D46 =0),0,($F46 /$D46 )) -> 0.2325863534 | H46: 6827684 | I46: 15278721 | J46: 15890053 | K46: 37996458 | L46: 0 | M46: 0 | N46: 0 | O46: 0 | P46: 0 | Q46: 0 | R46: 0 | S46: 0 | T46: 0 | U46: 0 | V46: 0 | W46: 0
A47: B | B47: Umzimvubu | C47: EC442 | D47: 215003000 | E47: 215003000 | F47: 27570486 | G47: =IF(($D47 =0),0,($F47 /$D47 )) -> 0.1282330293 | H47: 9668461 | I47: 7524751 | J47: 10377274 | K47: 27570486 | L47: 0 | M47: 0 | N47: 0 | O47: 0 | P47: 0 | Q47: 0 | R47: 0 | S47: 0 | T47: 0 | U47: 0 | V47: 0 | W47: 0
A48: B | B48: Winnie Madikizela-Mandela | C48: EC443 | D48: 165872427 | E48: 165872427 | F48: 28109360 | G48: =IF(($D48 =0),0,($F48 /$D48 )) -> 0.1694637289 | H48: 7331826 | I48: 10074695 | J48: 10702839 | K48: 28109360 | L48: 0 | M48: 0 | N48: 0 | O48: 0 | P48: 0 | Q48: 0 | R48: 0 | S48: 0 | T48: 0 | U48: 0 | V48: 0 | W48: 0
A49: B | B49: Ntabankulu | C49: EC444 | D49: 68269693 | E49: 68269693 | F49: 4454131 | G49: =IF(($D49 =0),0,($F49 /$D49 )) -> 0.06524316727 | H49: -3352032 | I49: 3192051 | J49: 4614112 | K49: 4454131 | L49: 0 | M49: 0 | N49: 0 | O49: 0 | P49: 0 | Q49: 0 | R49: 0 | S49: 0 | T49: 0 | U49: 0 | V49: 0 | W49: 0
A50: C | B50: Alfred Nzo | C50: DC44 | D50: 592469475 | E50: 592469475 | F50: 158505858 | G50: =IF(($D50 =0),0,($F50 /$D50 )) -> 0.2675342185 | H50: 42747098 | I50: 46247476 | J50: 69511284 | K50: 158505858 | L50: 0 | M50: 0 | N50: 0 | O50: 0 | P50: 0 | Q50: 0 | R50: 0 | S50: 0 | T50: 0 | U50: 0 | V50: 0 | W50: 0
B51: Total Alfred Nzo | D51: =SUM(D46:D50) -> 1204979545 | E51: =SUM(E46:E50) -> 1222365211 | F51: =SUM(F46:F50) -> 256636293 | G51: =IF(($D51 =0),0,($F51 /$D51 )) -> 0.2129797921 | H51: =SUM(H46:H50) -> 63223037 | I51: =SUM(I46:I50) -> 82317694 | J51: =SUM(J46:J50) -> 111095562 | K51: =SUM(K46:K50) -> 256636293 | L51: =SUM(L46:L50) -> 0 | M51: =SUM(M46:M50) -> 0 | N51: =SUM(N46:N50) -> 0 | O51: =SUM(O46:O50) -> 0 | P51: =SUM(P46:P50) -> 0 | Q51: =SUM(Q46:Q50) -> 0 | R51: =SUM(R46:R50) -> 0 | S51: =SUM(S46:S50) -> 0 | T51: =SUM(T46:T50) -> 0 | U51: =SUM(U46:U50) -> 0 | V51: =SUM(V46:V50) -> 0 | W51: =SUM(W46:W50) -> 0
B52: Total Eastern Cape | D52: =SUM(D6:D7,D9:D16,D18:D24,D26:D32,D34:D37,D39:D44,D46:D50) -> 10206584885 | E52: =SUM(E6:E7,E9:E16,E18:E24,E26:E32,E34:E37,E39:E44,E46:E50) -> 10393664518 | F52: =SUM(F6:F7,F9:F16,F18:F24,F26:F32,F34:F37,F39:F44,F46:F50) -> 1708325143 | G52: =IF(($D52 =0),0,($F52 /$D52 )) -> 0.1673748038 | H52: =SUM(H6:H7,H9:H16,H18:H24,H26:H32,H34:H37,H39:H44,H46:H50) -> 720312055 | I52: =SUM(I6:I7,I9:I16,I18:I24,I26:I32,I34:I37,I39:I44,I46:I50) -> 467813013 | J52: =SUM(J6:J7,J9:J16,J18:J24,J26:J32,J34:J37,J39:J44,J46:J50) -> 520200075 | K52: =SUM(K6:K7,K9:K16,K18:K24,K26:K32,K34:K37,K39:K44,K46:K50) -> 1708325143 | L52: =SUM(L6:L7,L9:L16,L18:L24,L26:L32,L34:L37,L39:L44,L46:L50) -> 0 | M52: =SUM(M6:M7,M9:M16,M18:M24,M26:M32,M34:M37,M39:M44,M46:M50) -> 0 | N52: =SUM(N6:N7,N9:N16,N18:N24,N26:N32,N34:N37,N39:N44,N46:N50) -> 0 | O52: =SUM(O6:O7,O9:O16,O18:O24,O26:O32,O34:O37,O39:O44,O46:O50) -> 0 | P52: =SUM(P6:P7,P9:P16,P18:P24,P26:P32,P34:P37,P39:P44,P46:P50) -> 0 | Q52: =SUM(Q6:Q7,Q9:Q16,Q18:Q24,Q26:Q32,Q34:Q37,Q39:Q44,Q46:Q50) -> 0 | R52: =SUM(R6:R7,R9:R16,R18:R24,R26:R32,R34:R37,R39:R44,R46:R50) -> 0 | S52: =SUM(S6:S7,S9:S16,S18:S24,S26:S32,S34:S37,S39:S44,S46:S50) -> 0 | T52: =SUM(T6:T7,T9:T16,T18:T24,T26:T32,T34:T37,T39:T44,T46:T50) -> 0 | U52: =SUM(U6:U7,U9:U16,U18:U24,U26:U32,U34:U37,U39:U44,U46:U50) -> 0 | V52: =SUM(V6:V7,V9:V16,V18:V24,V26:V32,V34:V37,V39:V44,V46:V50) -> 0 | W52: =SUM(W6:W7,W9:W16,W18:W24,W26:W32,W34:W37,W39:W44,W46:W50) -> 0
B54: FREE STATE
A55: A | B55: Mangaung | C55: MAN | D55: 1343987464 | E55: 1343987464 | F55: 104526439 | G55: =IF(($D55 =0),0,($F55 /$D55 )) -> 0.07777337349 | H55: 12020609 | I55: -3403758 | J55: 95909588 | K55: 104526439 | L55: 0 | M55: 0 | N55: 0 | O55: 0 | P55: 0 | Q55: 0 | R55: 0 | S55: 0 | T55: 0 | U55: 0 | V55: 0 | W55: 0
B56: Total Metros | D56: =D55 -> 1343987464 | E56: =E55 -> 1343987464 | F56: =F55 -> 104526439 | G56: =IF(($D56 =0),0,($F56 /$D56 )) -> 0.07777337349 | H56: =H55 -> 12020609 | I56: =I55 -> -3403758 | J56: =J55 -> 95909588 | K56: =K55 -> 104526439 | L56: =L55 -> 0 | M56: =M55 -> 0 | N56: =N55 -> 0 | O56: =O55 -> 0 | P56: =P55 -> 0 | Q56: =Q55 -> 0 | R56: =R55 -> 0 | S56: =S55 -> 0 | T56: =T55 -> 0 | U56: =U55 -> 0 | V56: =V55 -> 0 | W56: =W55 -> 0
A57: B | B57: Letsemeng | C57: FS161 | D57: 40044260 | E57: 40044260 | F57: 580584 | G57: =IF(($D57 =0),0,($F57 /$D57 )) -> 0.01449855735 | H57: 0 | I57: 580584 | J57: 0 | K57: 580584 | L57: 0 | M57: 0 | N57: 0 | O57: 0 | P57: 0 | Q57: 0 | R57: 0 | S57: 0 | T57: 0 | U57: 0 | V57: 0 | W57: 0
A58: B | B58: Kopanong | C58: FS162 | D58: 50378251 | E58: 50378251 | F58: 3417667 | G58: =IF(($D58 =0),0,($F58 /$D58 )) -> 0.06784012807 | H58: 0 | I58: 2230761 | J58: 1186906 | K58: 3417667 | L58: 0 | M58: 0 | N58: 0 | O58: 0 | P58: 0 | Q58: 0 | R58: 0 | S58: 0 | T58: 0 | U58: 0 | V58: 0 | W58: 0
A59: B | B59: Mohokare | C59: FS163 | D59: 48221808 | E59: 48221808 | F59: 245 | G59: =IF(($D59 =0),0,($F59 /$D59 )) -> 5.080688804e-06 | H59: 0 | I59: 245 | J59: 0 | K59: 245 | L59: 0 | M59: 0 | N59: 0 | O59: 0 | P59: 0 | Q59: 0 | R59: 0 | S59: 0 | T59: 0 | U59: 0 | V59: 0 | W59: 0
A60: C | B60: Xhariep | C60: DC16 | D60: 3914000 | E60: 3914000 | F60: 22056270 | G60: =IF(($D60 =0),0,($F60 /$D60 )) -> 5.635224834 | H60: 19737 | I60: 47087 | J60: 21989446 | K60: 22056270 | L60: 0 | M60: 0 | N60: 0 | O60: 0 | P60: 0 | Q60: 0 | R60: 0 | S60: 0 | T60: 0 | U60: 0 | V60: 0 | W60: 0
B61: Total Xhariep | D61: =SUM(D57:D60) -> 142558319 | E61: =SUM(E57:E60) -> 142558319 | F61: =SUM(F57:F60) -> 26054766 | G61: =IF(($D61 =0),0,($F61 /$D61 )) -> 0.1827656652 | H61: =SUM(H57:H60) -> 19737 | I61: =SUM(I57:I60) -> 2858677 | J61: =SUM(J57:J60) -> 23176352 | K61: =SUM(K57:K60) -> 26054766 | L61: =SUM(L57:L60) -> 0 | M61: =SUM(M57:M60) -> 0 | N61: =SUM(N57:N60) -> 0 | O61: =SUM(O57:O60) -> 0 | P61: =SUM(P57:P60) -> 0 | Q61: =SUM(Q57:Q60) -> 0 | R61: =SUM(R57:R60) -> 0 | S61: =SUM(S57:S60) -> 0 | T61: =SUM(T57:T60) -> 0 | U61: =SUM(U57:U60) -> 0 | V61: =SUM(V57:V60) -> 0 | W61: =SUM(W57:W60) -> 0
A62: B | B62: Masilonyana | C62: FS181 | D62: 77730541 | E62: 77730541 | F62: -1673748588 | G62: =IF(($D62 =0),0,($F62 /$D62 )) -> -21.53270216 | H62: 0 | I62: 2720302 | J62: -1676468890 | K62: -1673748588 | L62: 0 | M62: 0 | N62: 0 | O62: 0 | P62: 0 | Q62: 0 | R62: 0 | S62: 0 | T62: 0 | U62: 0 | V62: 0 | W62: 0
A63: B | B63: Tokologo | C63: FS182 | D63: 42079866 | E63: 42079866 | F63: 3646427 | G63: =IF(($D63 =0),0,($F63 /$D63 )) -> 0.08665490998 | H63: 992962 | I63: 1368115 | J63: 1285350 | K63: 3646427 | L63: 0 | M63: 0 | N63: 0 | O63: 0 | P63: 0 | Q63: 0 | R63: 0 | S63: 0 | T63: 0 | U63: 0 | V63: 0 | W63: 0
A64: B | B64: Tswelopele | C64: FS183 | D64: 41201000 | E64: 41201000 | F64: 9762365 | G64: =IF(($D64 =0),0,($F64 /$D64 )) -> 0.2369448557 | H64: 6335318 | I64: 3423984 | J64: 3063 | K64: 9762365 | L64: 0 | M64: 0 | N64: 0 | O64: 0 | P64: 0 | Q64: 0 | R64: 0 | S64: 0 | T64: 0 | U64: 0 | V64: 0 | W64: 0
A65: B | B65: Matjhabeng | C65: FS184 | D65: 140263000 | E65: 140263000 | F65: 59013224 | G65: =IF(($D65 =0),0,($F65 /$D65 )) -> 0.4207326522 | H65: 11111171 | I65: 34343894 | J65: 13558159 | K65: 59013224 | L65: 0 | M65: 0 | N65: 0 | O65: 0 | P65: 0 | Q65: 0 | R65: 0 | S65: 0 | T65: 0 | U65: 0 | V65: 0 | W65: 0
A66: B | B66: Nala | C66: FS185 | D66: 57483500 | E66: 57483500 | F66: 12317592 | G66: =IF(($D66 =0),0,($F66 /$D66 )) -> 0.2142804805 | H66: 2646096 | I66: 3320531 | J66: 6350965 | K66: 12317592 | L66: 0 | M66: 0 | N66: 0 | O66: 0 | P66: 0 | Q66: 0 | R66: 0 | S66: 0 | T66: 0 | U66: 0 | V66: 0 | W66: 0
A67: C | B67: Lejweleputswa | C67: DC18 | D67: 450000 | E67: 450000 | F67: 0 | G67: =IF(($D67 =0),0,($F67 /$D67 )) -> 0 | H67: 0 | I67: 0 | J67: 0 | K67: 0 | L67: 0 | M67: 0 | N67: 0 | O67: 0 | P67: 0 | Q67: 0 | R67: 0 | S67: 0 | T67: 0 | U67: 0 | V67: 0 | W67: 0
B68: Total Lejweleputswa | D68: =SUM(D62:D67) -> 359207907 | E68: =SUM(E62:E67) -> 359207907 | F68: =SUM(F62:F67) -> -1589008980 | G68: =IF(($D68 =0),0,($F68 /$D68 )) -> -4.423647 | H68: =SUM(H62:H67) -> 21085547 | I68: =SUM(I62:I67) -> 45176826 | J68: =SUM(J62:J67) -> -1655271353 | K68: =SUM(K62:K67) -> -1589008980 | L68: =SUM(L62:L67) -> 0 | M68: =SUM(M62:M67) -> 0 | N68: =SUM(N62:N67) -> 0 | O68: =SUM(O62:O67) -> 0 | P68: =SUM(P62:P67) -> 0 | Q68: =SUM(Q62:Q67) -> 0 | R68: =SUM(R62:R67) -> 0 | S68: =SUM(S62:S67) -> 0 | T68: =SUM(T62:T67) -> 0 | U68: =SUM(U62:U67) -> 0 | V68: =SUM(V62:V67) -> 0 | W68: =SUM(W62:W67) -> 0
A69: B | B69: Setsoto | C69: FS191 | D69: 287594868 | E69: 287594868 | F69: 49584943 | G69: =IF(($D69 =0),0,($F69 /$D69 )) -> 0.172412475 | H69: 18711836 | I69: 6212416 | J69: 24660691 | K69: 49584943 | L69: 0 | M69: 0 | N69: 0 | O69: 0 | P69: 0 | Q69: 0 | R69: 0 | S69: 0 | T69: 0 | U69: 0 | V69: 0 | W69: 0
A70: B | B70: Dihlabeng | C70: FS192 | D70: 146249241 | E70: 146249241 | F70: 26688846 | G70: =IF(($D70 =0),0,($F70 /$D70 )) -> 0.182488783 | H70: 4961186 | I70: 11133500 | J70: 10594160 | K70: 26688846 | L70: 0 | M70: 0 | N70: 0 | O70: 0 | P70: 0 | Q70: 0 | R70: 0 | S70: 0 | T70: 0 | U70: 0 | V70: 0 | W70: 0
A71: B | B71: Nketoana | C71: FS193 | D71: 212841009 | E71: 212841009 | F71: 8319587 | G71: =IF(($D71 =0),0,($F71 /$D71 )) -> 0.03908827081 | H71: 1768481 | I71: 3860722 | J71: 2690384 | K71: 8319587 | L71: 0 | M71: 0 | N71: 0 | O71: 0 | P71: 0 | Q71: 0 | R71: 0 | S71: 0 | T71: 0 | U71: 0 | V71: 0 | W71: 0
A72: B | B72: Maluti-a-Phofung | C72: FS194 | D72: 316680865 | E72: 316680865 | F72: 25048572 | G72: =IF(($D72 =0),0,($F72 /$D72 )) -> 0.07909720722 | H72: 2246769 | I72: 12452021 | J72: 10349782 | K72: 25048572 | L72: 0 | M72: 0 | N72: 0 | O72: 0 | P72: 0 | Q72: 0 | R72: 0 | S72: 0 | T72: 0 | U72: 0 | V72: 0 | W72: 0
A73: B | B73: Phumelela | C73: FS195 | D73: 44113000 | E73: 44113000 | F73: 6886278 | G73: =IF(($D73 =0),0,($F73 /$D73 )) -> 0.1561054111 | H73: 0 | I73: 2578306 | J73: 4307972 | K73: 6886278 | L73: 0 | M73: 0 | N73: 0 | O73: 0 | P73: 0 | Q73: 0 | R73: 0 | S73: 0 | T73: 0 | U73: 0 | V73: 0 | W73: 0
A74: B | B74: Mantsopa | C74: FS196 | D74: 34810650 | E74: 34810650 | F74: 3096199 | G74: =IF(($D74 =0),0,($F74 /$D74 )) -> 0.0889440157 | H74: 0 | I74: 156522 | J74: 2939677 | K74: 3096199 | L74: 0 | M74: 0 | N74: 0 | O74: 0 | P74: 0 | Q74: 0 | R74: 0 | S74: 0 | T74: 0 | U74: 0 | V74: 0 | W74: 0
A75: C | B75: Thabo Mofutsanyana | C75: DC19 | D75: 9920004 | E75: 9920004 | F75: 2239019 | G75: =IF(($D75 =0),0,($F75 /$D75 )) -> 0.2257074695 | H75: 480473 | I75: 97398 | J75: 1661148 | K75: 2239019 | L75: 0 | M75: 0 | N75: 0 | O75: 0 | P75: 0 | Q75: 0 | R75: 0 | S75: 0 | T75: 0 | U75: 0 | V75: 0 | W75: 0
B76: Total Thabo Mofutsanyana | D76: =SUM(D69:D75) -> 1052209637 | E76: =SUM(E69:E75) -> 1052209637 | F76: =SUM(F69:F75) -> 121863444 | G76: =IF(($D76 =0),0,($F76 /$D76 )) -> 0.1158166963 | H76: =SUM(H69:H75) -> 28168745 | I76: =SUM(I69:I75) -> 36490885 | J76: =SUM(J69:J75) -> 57203814 | K76: =SUM(K69:K75) -> 121863444 | L76: =SUM(L69:L75) -> 0 | M76: =SUM(M69:M75) -> 0 | N76: =SUM(N69:N75) -> 0 | O76: =SUM(O69:O75) -> 0 | P76: =SUM(P69:P75) -> 0 | Q76: =SUM(Q69:Q75) -> 0 | R76: =SUM(R69:R75) -> 0 | S76: =SUM(S69:S75) -> 0 | T76: =SUM(T69:T75) -> 0 | U76: =SUM(U69:U75) -> 0 | V76: =SUM(V69:V75) -> 0 | W76: =SUM(W69:W75) -> 0
A77: B | B77: Moqhaka | C77: FS201 | D77: 95021271 | E77: 95021271 | F77: 12211639 | G77: =IF(($D77 =0),0,($F77 /$D77 )) -> 0.1285147933 | H77: 12929 | I77: 9704158 | J77: 2494552 | K77: 12211639 | L77: 0 | M77: 0 | N77: 0 | O77: 0 | P77: 0 | Q77: 0 | R77: 0 | S77: 0 | T77: 0 | U77: 0 | V77: 0 | W77: 0
A78: B | B78: Ngwathe | C78: FS203 | D78: 171207399 | E78: 171207399 | F78: 15748275 | G78: =IF(($D78 =0),0,($F78 /$D78 )) -> 0.09198361223 | H78: 1342864 | I78: 7925745 | J78: 6479666 | K78: 15748275 | L78: 0 | M78: 0 | N78: 0 | O78: 0 | P78: 0 | Q78: 0 | R78: 0 | S78: 0 | T78: 0 | U78: 0 | V78: 0 | W78: 0
A79: B | B79: Metsimaholo | C79: FS204 | D79: 163206950 | E79: 163206950 | F79: 16053132 | G79: =IF(($D79 =0),0,($F79 /$D79 )) -> 0.09836059065 | H79: 6506804 | I79: 0 | J79: 9546328 | K79: 16053132 | L79: 0 | M79: 0 | N79: 0 | O79: 0 | P79: 0 | Q79: 0 | R79: 0 | S79: 0 | T79: 0 | U79: 0 | V79: 0 | W79: 0
A80: B | B80: Mafube | C80: FS205 | D80: 39243750 | E80: 39243750 | F80: 1290836 | G80: =IF(($D80 =0),0,($F80 /$D80 )) -> 0.0328927791 | H80: 0 | I80: 1066821 | J80: 224015 | K80: 1290836 | L80: 0 | M80: 0 | N80: 0 | O80: 0 | P80: 0 | Q80: 0 | R80: 0 | S80: 0 | T80: 0 | U80: 0 | V80: 0 | W80: 0
A81: C | B81: Fezile Dabi | C81: DC20 | D81: 4000000 | E81: 4000000 | F81: 9192 | G81: =IF(($D81 =0),0,($F81 /$D81 )) -> 0.002298 | H81: 0 | I81: 2680 | J81: 6512 | K81: 9192 | L81: 0 | M81: 0 | N81: 0 | O81: 0 | P81: 0 | Q81: 0 | R81: 0 | S81: 0 | T81: 0 | U81: 0 | V81: 0 | W81: 0
B82: Total Fezile Dabi | D82: =SUM(D77:D81) -> 472679370 | E82: =SUM(E77:E81) -> 472679370 | F82: =SUM(F77:F81) -> 45313074 | G82: =IF(($D82 =0),0,($F82 /$D82 )) -> 0.0958642938 | H82: =SUM(H77:H81) -> 7862597 | I82: =SUM(I77:I81) -> 18699404 | J82: =SUM(J77:J81) -> 18751073 | K82: =SUM(K77:K81) -> 45313074 | L82: =SUM(L77:L81) -> 0 | M82: =SUM(M77:M81) -> 0 | N82: =SUM(N77:N81) -> 0 | O82: =SUM(O77:O81) -> 0 | P82: =SUM(P77:P81) -> 0 | Q82: =SUM(Q77:Q81) -> 0 | R82: =SUM(R77:R81) -> 0 | S82: =SUM(S77:S81) -> 0 | T82: =SUM(T77:T81) -> 0 | U82: =SUM(U77:U81) -> 0 | V82: =SUM(V77:V81) -> 0 | W82: =SUM(W77:W81) -> 0
B83: Total Free State | D83: =SUM(D55,D57:D60,D62:D67,D69:D75,D77:D81) -> 3370642697 | E83: =SUM(E55,E57:E60,E62:E67,E69:E75,E77:E81) -> 3370642697 | F83: =SUM(F55,F57:F60,F62:F67,F69:F75,F77:F81) -> -1291251257 | G83: =IF(($D83 =0),0,($F83 /$D83 )) -> -0.3830875513 | H83: =SUM(H55,H57:H60,H62:H67,H69:H75,H77:H81) -> 69157235 | I83: =SUM(I55,I57:I60,I62:I67,I69:I75,I77:I81) -> 99822034 | J83: =SUM(J55,J57:J60,J62:J67,J69:J75,J77:J81) -> -1460230526 | K83: =SUM(K55,K57:K60,K62:K67,K69:K75,K77:K81) -> -1291251257 | L83: =SUM(L55,L57:L60,L62:L67,L69:L75,L77:L81) -> 0 | M83: =SUM(M55,M57:M60,M62:M67,M69:M75,M77:M81) -> 0 | N83: =SUM(N55,N57:N60,N62:N67,N69:N75,N77:N81) -> 0 | O83: =SUM(O55,O57:O60,O62:O67,O69:O75,O77:O81) -> 0 | P83: =SUM(P55,P57:P60,P62:P67,P69:P75,P77:P81) -> 0 | Q83: =SUM(Q55,Q57:Q60,Q62:Q67,Q69:Q75,Q77:Q81) -> 0 | R83: =SUM(R55,R57:R60,R62:R67,R69:R75,R77:R81) -> 0 | S83: =SUM(S55,S57:S60,S62:S67,S69:S75,S77:S81) -> 0 | T83: =SUM(T55,T57:T60,T62:T67,T69:T75,T77:T81) -> 0 | U83: =SUM(U55,U57:U60,U62:U67,U69:U75,U77:U81) -> 0 | V83: =SUM(V55,V57:V60,V62:V67,V69:V75,V77:V81) -> 0 | W83: =SUM(W55,W57:W60,W62:W67,W69:W75,W77:W81) -> 0
B85: GAUTENG
A86: A | B86: City of Ekurhuleni | C86: EKU | D86: 3197115099 | E86: 3197115099 | F86: 137679154 | G86: =IF(($D86 =0),0,($F86 /$D86 )) -> 0.04306355878 | H86: 3369388 | I86: 51768604 | J86: 82541162 | K86: 137679154 | L86: 0 | M86: 0 | N86: 0 | O86: 0 | P86: 0 | Q86: 0 | R86: 0 | S86: 0 | T86: 0 | U86: 0 | V86: 0 | W86: 0
A87: A | B87: City of Johannesburg | C87: JHB | D87: 8700420163 | E87: 8700420163 | F87: 712504000 | G87: =IF(($D87 =0),0,($F87 /$D87 )) -> 0.0818930565 | H87: 83591000 | I87: 288018000 | J87: 340895000 | K87: 712504000 | L87: 0 | M87: 0 | N87: 0 | O87: 0 | P87: 0 | Q87: 0 | R87: 0 | S87: 0 | T87: 0 | U87: 0 | V87: 0 | W87: 0
A88: A | B88: City of Tshwane | C88: TSH | D88: 2459328252 | E88: 2459328252 | F88: 443827692 | G88: =IF(($D88 =0),0,($F88 /$D88 )) -> 0.1804670408 | H88: 0 | I88: 0 | J88: 443827692 | K88: 443827692 | L88: 0 | M88: 0 | N88: 0 | O88: 0 | P88: 0 | Q88: 0 | R88: 0 | S88: 0 | T88: 0 | U88: 0 | V88: 0 | W88: 0
B89: Total Metros | D89: =SUM(D86:D88) -> 14356863514 | E89: =SUM(E86:E88) -> 14356863514 | F89: =SUM(F86:F88) -> 1294010846 | G89: =IF(($D89 =0),0,($F89 /$D89 )) -> 0.09013186235 | H89: =SUM(H86:H88) -> 86960388 | I89: =SUM(I86:I88) -> 339786604 | J89: =SUM(J86:J88) -> 867263854 | K89: =SUM(K86:K88) -> 1294010846 | L89: =SUM(L86:L88) -> 0 | M89: =SUM(M86:M88) -> 0 | N89: =SUM(N86:N88) -> 0 | O89: =SUM(O86:O88) -> 0 | P89: =SUM(P86:P88) -> 0 | Q89: =SUM(Q86:Q88) -> 0 | R89: =SUM(R86:R88) -> 0 | S89: =SUM(S86:S88) -> 0 | T89: =SUM(T86:T88) -> 0 | U89: =SUM(U86:U88) -> 0 | V89: =SUM(V86:V88) -> 0 | W89: =SUM(W86:W88) -> 0
A90: B | B90: Emfuleni | C90: GT421 | D90: 379715545 | E90: 379715545 | F90: 37843949 | G90: =IF(($D90 =0),0,($F90 /$D90 )) -> 0.09966394449 | H90: 10296972 | I90: 2738613 | J90: 24808364 | K90: 37843949 | L90: 0 | M90: 0 | N90: 0 | O90: 0 | P90: 0 | Q90: 0 | R90: 0 | S90: 0 | T90: 0 | U90: 0 | V90: 0 | W90: 0
A91: B | B91: Midvaal | C91: GT422 | D91: 235715132 | E91: 250485132 | F91: 25412278 | G91: =IF(($D91 =0),0,($F91 /$D91 )) -> 0.1078092772 | H91: 2516 | I91: 3376448 | J91: 22033314 | K91: 25412278 | L91: 0 | M91: 0 | N91: 0 | O91: 0 | P91: 0 | Q91: 0 | R91: 0 | S91: 0 | T91: 0 | U91: 0 | V91: 0 | W91: 0
A92: B | B92: Lesedi | C92: GT423 | D92: 104387800 | E92: 104387800 | F92: 16833231 | G92: =IF(($D92 =0),0,($F92 /$D92 )) -> 0.161256689 | H92: 7399321 | I92: 6011942 | J92: 3421968 | K92: 16833231 | L92: 0 | M92: 0 | N92: 0 | O92: 0 | P92: 0 | Q92: 0 | R92: 0 | S92: 0 | T92: 0 | U92: 0 | V92: 0 | W92: 0
A93: C | B93: Sedibeng | C93: DC42 | D93: 8145738 | E93: 8145738 | F93: 383000 | G93: =IF(($D93 =0),0,($F93 /$D93 )) -> 0.04701845309 | H93: 273254 | I93: 78520 | J93: 31226 | K93: 383000 | L93: 0 | M93: 0 | N93: 0 | O93: 0 | P93: 0 | Q93: 0 | R93: 0 | S93: 0 | T93: 0 | U93: 0 | V93: 0 | W93: 0
B94: Total Sedibeng | D94: =SUM(D90:D93) -> 727964215 | E94: =SUM(E90:E93) -> 742734215 | F94: =SUM(F90:F93) -> 80472458 | G94: =IF(($D94 =0),0,($F94 /$D94 )) -> 0.1105445245 | H94: =SUM(H90:H93) -> 17972063 | I94: =SUM(I90:I93) -> 12205523 | J94: =SUM(J90:J93) -> 50294872 | K94: =SUM(K90:K93) -> 80472458 | L94: =SUM(L90:L93) -> 0 | M94: =SUM(M90:M93) -> 0 | N94: =SUM(N90:N93) -> 0 | O94: =SUM(O90:O93) -> 0 | P94: =SUM(P90:P93) -> 0 | Q94: =SUM(Q90:Q93) -> 0 | R94: =SUM(R90:R93) -> 0 | S94: =SUM(S90:S93) -> 0 | T94: =SUM(T90:T93) -> 0 | U94: =SUM(U90:U93) -> 0 | V94: =SUM(V90:V93) -> 0 | W94: =SUM(W90:W93) -> 0
A95: B | B95: Mogale City | C95: GT481 | D95: 500648888 | E95: 586534888 | F95: 70477485 | G95: =IF(($D95 =0),0,($F95 /$D95 )) -> 0.1407722791 | H95: 19334141 | I95: 32927385 | J95: 18215959 | K95: 70477485 | L95: 0 | M95: 0 | N95: 0 | O95: 0 | P95: 0 | Q95: 0 | R95: 0 | S95: 0 | T95: 0 | U95: 0 | V95: 0 | W95: 0
A96: B | B96: Merafong City | C96: GT484 | D96: 155110899 | E96: 155110899 | F96: 20122550 | G96: =IF(($D96 =0),0,($F96 /$D96 )) -> 0.1297300843 | H96: -342362756 | I96: 3677173 | J96: 358808133 | K96: 20122550 | L96: 0 | M96: 0 | N96: 0 | O96: 0 | P96: 0 | Q96: 0 | R96: 0 | S96: 0 | T96: 0 | U96: 0 | V96: 0 | W96: 0
A97: B | B97: Rand West City | C97: GT485 | D97: 291421741 | E97: 291421741 | F97: 54021366 | G97: =IF(($D97 =0),0,($F97 /$D97 )) -> 0.185371777 | H97: 761270 | I97: 37347591 | J97: 15912505 | K97: 54021366 | L97: 0 | M97: 0 | N97: 0 | O97: 0 | P97: 0 | Q97: 0 | R97: 0 | S97: 0 | T97: 0 | U97: 0 | V97: 0 | W97: 0
A98: C | B98: West Rand | C98: DC48 | D98: 3729132 | E98: 3729132 | F98: 297817 | G98: =IF(($D98 =0),0,($F98 /$D98 )) -> 0.07986228431 | H98: 297817 | I98: 0 | J98: 0 | K98: 297817 | L98: 0 | M98: 0 | N98: 0 | O98: 0 | P98: 0 | Q98: 0 | R98: 0 | S98: 0 | T98: 0 | U98: 0 | V98: 0 | W98: 0
B99: Total West Rand | D99: =SUM(D95:D98) -> 950910660 | E99: =SUM(E95:E98) -> 1036796660 | F99: =SUM(F95:F98) -> 144919218 | G99: =IF(($D99 =0),0,($F99 /$D99 )) -> 0.1524004558 | H99: =SUM(H95:H98) -> -321969528 | I99: =SUM(I95:I98) -> 73952149 | J99: =SUM(J95:J98) -> 392936597 | K99: =SUM(K95:K98) -> 144919218 | L99: =SUM(L95:L98) -> 0 | M99: =SUM(M95:M98) -> 0 | N99: =SUM(N95:N98) -> 0 | O99: =SUM(O95:O98) -> 0 | P99: =SUM(P95:P98) -> 0 | Q99: =SUM(Q95:Q98) -> 0 | R99: =SUM(R95:R98) -> 0 | S99: =SUM(S95:S98) -> 0 | T99: =SUM(T95:T98) -> 0 | U99: =SUM(U95:U98) -> 0 | V99: =SUM(V95:V98) -> 0 | W99: =SUM(W95:W98) -> 0
B100: Total Gauteng | D100: =SUM(D86:D88,D90:D93,D95:D98) -> 16035738389 | E100: =SUM(E86:E88,E90:E93,E95:E98) -> 16136394389 | F100: =SUM(F86:F88,F90:F93,F95:F98) -> 1519402522 | G100: =IF(($D100 =0),0,($F100 /$D100 )) -> 0.09475101708 | H100: =SUM(H86:H88,H90:H93,H95:H98) -> -217037077 | I100: =SUM(I86:I88,I90:I93,I95:I98) -> 425944276 | J100: =SUM(J86:J88,J90:J93,J95:J98) -> 1310495323 | K100: =SUM(K86:K88,K90:K93,K95:K98) -> 1519402522 | L100: =SUM(L86:L88,L90:L93,L95:L98) -> 0 | M100: =SUM(M86:M88,M90:M93,M95:M98) -> 0 | N100: =SUM(N86:N88,N90:N93,N95:N98) -> 0 | O100: =SUM(O86:O88,O90:O93,O95:O98) -> 0 | P100: =SUM(P86:P88,P90:P93,P95:P98) -> 0 | Q100: =SUM(Q86:Q88,Q90:Q93,Q95:Q98) -> 0 | R100: =SUM(R86:R88,R90:R93,R95:R98) -> 0 | S100: =SUM(S86:S88,S90:S93,S95:S98) -> 0 | T100: =SUM(T86:T88,T90:T93,T95:T98) -> 0 | U100: =SUM(U86:U88,U90:U93,U95:U98) -> 0 | V100: =SUM(V86:V88,V90:V93,V95:V98) -> 0 | W100: =SUM(W86:W88,W90:W93,W95:W98) -> 0
B102: KWAZULU-NATAL
A103: A | B103: eThekwini | C103: ETH | D103: 7296796000 | E103: 7296796000 | F103: 682501393 | G103: =IF(($D103 =0),0,($F103 /$D103 )) -> 0.09353439414 | H103: 28984421 | I103: 259393896 | J103: 394123076 | K103: 682501393 | L103: 0 | M103: 0 | N103: 0 | O103: 0 | P103: 0 | Q103: 0 | R103: 0 | S103: 0 | T103: 0 | U103: 0 | V103: 0 | W103: 0
B104: Total Metros | D104: =D103 -> 7296796000 | E104: =E103 -> 7296796000 | F104: =F103 -> 682501393 | G104: =IF(($D104 =0),0,($F104 /$D104 )) -> 0.09353439414 | H104: =H103 -> 28984421 | I104: =I103 -> 259393896 | J104: =J103 -> 394123076 | K104: =K103 -> 682501393 | L104: =L103 -> 0 | M104: =M103 -> 0 | N104: =N103 -> 0 | O104: =O103 -> 0 | P104: =P103 -> 0 | Q104: =Q103 -> 0 | R104: =R103 -> 0 | S104: =S103 -> 0 | T104: =T103 -> 0 | U104: =U103 -> 0 | V104: =V103 -> 0 | W104: =W103 -> 0
A105: B | B105: Umdoni | C105: KZN212 | D105: 80918782 | E105: 80918782 | F105: 20670102 | G105: =IF(($D105 =0),0,($F105 /$D105 )) -> 0.2554425745 | H105: 10003493 | I105: 9809693 | J105: 856916 | K105: 20670102 | L105: 0 | M105: 0 | N105: 0 | O105: 0 | P105: 0 | Q105: 0 | R105: 0 | S105: 0 | T105: 0 | U105: 0 | V105: 0 | W105: 0
A106: B | B106: Umzumbe | C106: KZN213 | D106: 52388500 | E106: 52388500 | F106: 12282292 | G106: =IF(($D106 =0),0,($F106 /$D106 )) -> 0.2344463384 | H106: 1123509 | I106: 3350059 | J106: 7808724 | K106: 12282292 | L106: 0 | M106: 0 | N106: 0 | O106: 0 | P106: 0 | Q106: 0 | R106: 0 | S106: 0 | T106: 0 | U106: 0 | V106: 0 | W106: 0
A107: B | B107: uMuziwabantu | C107: KZN214 | D107: 35107944 | E107: 35107944 | F107: 3631284 | G107: =IF(($D107 =0),0,($F107 /$D107 )) -> 0.1034319754 | H107: 2579816 | I107: 1051468 | J107: 0 | K107: 3631284 | L107: 0 | M107: 0 | N107: 0 | O107: 0 | P107: 0 | Q107: 0 | R107: 0 | S107: 0 | T107: 0 | U107: 0 | V107: 0 | W107: 0
A108: B | B108: Ray Nkonyeni | C108: KZN216 | D108: 173725424 | E108: 173725424 | F108: 52336655 | G108: =IF(($D108 =0),0,($F108 /$D108 )) -> 0.30126077 | H108: 16070471 | I108: 11130143 | J108: 25136041 | K108: 52336655 | L108: 0 | M108: 0 | N108: 0 | O108: 0 | P108: 0 | Q108: 0 | R108: 0 | S108: 0 | T108: 0 | U108: 0 | V108: 0 | W108: 0
A109: C | B109: Ugu | C109: DC21 | D109: 373244700 | E109: 373244700 | F109: 123281484 | G109: =IF(($D109 =0),0,($F109 /$D109 )) -> 0.3302966767 | H109: 64235250 | I109: 28777697 | J109: 30268537 | K109: 123281484 | L109: 0 | M109: 0 | N109: 0 | O109: 0 | P109: 0 | Q109: 0 | R109: 0 | S109: 0 | T109: 0 | U109: 0 | V109: 0 | W109: 0
B110: Total Ugu | D110: =SUM(D105:D109) -> 715385350 | E110: =SUM(E105:E109) -> 715385350 | F110: =SUM(F105:F109) -> 212201817 | G110: =IF(($D110 =0),0,($F110 /$D110 )) -> 0.2966258912 | H110: =SUM(H105:H109) -> 94012539 | I110: =SUM(I105:I109) -> 54119060 | J110: =SUM(J105:J109) -> 64070218 | K110: =SUM(K105:K109) -> 212201817 | L110: =SUM(L105:L109) -> 0 | M110: =SUM(M105:M109) -> 0 | N110: =SUM(N105:N109) -> 0 | O110: =SUM(O105:O109) -> 0 | P110: =SUM(P105:P109) -> 0 | Q110: =SUM(Q105:Q109) -> 0 | R110: =SUM(R105:R109) -> 0 | S110: =SUM(S105:S109) -> 0 | T110: =SUM(T105:T109) -> 0 | U110: =SUM(U105:U109) -> 0 | V110: =SUM(V105:V109) -> 0 | W110: =SUM(W105:W109) -> 0
A111: B | B111: uMshwathi | C111: KZN221 | D111: 64945317 | E111: 64945317 | F111: 13506765 | G111: =IF(($D111 =0),0,($F111 /$D111 )) -> 0.2079713461 | H111: 7983147 | I111: 934052 | J111: 4589566 | K111: 13506765 | L111: 0 | M111: 0 | N111: 0 | O111: 0 | P111: 0 | Q111: 0 | R111: 0 | S111: 0 | T111: 0 | U111: 0 | V111: 0 | W111: 0
A112: B | B112: uMngeni | C112: KZN222 | D112: 117553835 | E112: 117553835 | F112: 7037812 | G112: =IF(($D112 =0),0,($F112 /$D112 )) -> 0.05986884222 | H112: 2055511 | I112: 9183 | J112: 4973118 | K112: 7037812 | L112: 0 | M112: 0 | N112: 0 | O112: 0 | P112: 0 | Q112: 0 | R112: 0 | S112: 0 | T112: 0 | U112: 0 | V112: 0 | W112: 0
A113: B | B113: Mpofana | C113: KZN223 | D113: 13982913 | E113: 13982913 | F113: 6779226 | G113: =IF(($D113 =0),0,($F113 /$D113 )) -> 0.484822154 | H113: 2690388 | I113: 2568268 | J113: 1520570 | K113: 6779226 | L113: 0 | M113: 0 | N113: 0 | O113: 0 | P113: 0 | Q113: 0 | R113: 0 | S113: 0 | T113: 0 | U113: 0 | V113: 0 | W113: 0
A114: B | B114: Impendle | C114: KZN224 | D114: 29910000 | E114: 29910000 | F114: 2266229 | G114: =IF(($D114 =0),0,($F114 /$D114 )) -> 0.07576827148 | H114: -36260395 | I114: 588320 | J114: 37938304 | K114: 2266229 | L114: 0 | M114: 0 | N114: 0 | O114: 0 | P114: 0 | Q114: 0 | R114: 0 | S114: 0 | T114: 0 | U114: 0 | V114: 0 | W114: 0
A115: B | B115: Msunduzi | C115: KZN225 | D115: 653856127 | E115: 653856127 | F115: 67978506 | G115: =IF(($D115 =0),0,($F115 /$D115 )) -> 0.103965541 | H115: 10544607 | I115: 40387884 | J115: 17046015 | K115: 67978506 | L115: 0 | M115: 0 | N115: 0 | O115: 0 | P115: 0 | Q115: 0 | R115: 0 | S115: 0 | T115: 0 | U115: 0 | V115: 0 | W115: 0
A116: B | B116: Mkhambathini | C116: KZN226 | D116: 24034000 | E116: 24034000 | F116: 7185085 | G116: =IF(($D116 =0),0,($F116 /$D116 )) -> 0.2989550221 | H116: -20360515 | I116: -21203098 | J116: 48748698 | K116: 7185085 | L116: 0 | M116: 0 | N116: 0 | O116: 0 | P116: 0 | Q116: 0 | R116: 0 | S116: 0 | T116: 0 | U116: 0 | V116: 0 | W116: 0
A117: B | B117: Richmond | C117: KZN227 | D117: 23780256 | E117: 23780256 | F117: 8167373 | G117: =IF(($D117 =0),0,($F117 /$D117 )) -> 0.3434518535 | H117: 1628910 | I117: 4107037 | J117: 2431426 | K117: 8167373 | L117: 0 | M117: 0 | N117: 0 | O117: 0 | P117: 0 | Q117: 0 | R117: 0 | S117: 0 | T117: 0 | U117: 0 | V117: 0 | W117: 0
A118: C | B118: uMgungundlovu | C118: DC22 | D118: 180628958 | E118: 180628958 | F118: 31016772 | G118: =IF(($D118 =0),0,($F118 /$D118 )) -> 0.1717153902 | H118: 5765295 | I118: 18246913 | J118: 7004564 | K118: 31016772 | L118: 0 | M118: 0 | N118: 0 | O118: 0 | P118: 0 | Q118: 0 | R118: 0 | S118: 0 | T118: 0 | U118: 0 | V118: 0 | W118: 0
B119: Total uMgungundlovu | D119: =SUM(D111:D118) -> 1108691406 | E119: =SUM(E111:E118) -> 1108691406 | F119: =SUM(F111:F118) -> 143937768 | G119: =IF(($D119 =0),0,($F119 /$D119 )) -> 0.1298267193 | H119: =SUM(H111:H118) -> -25953052 | I119: =SUM(I111:I118) -> 45638559 | J119: =SUM(J111:J118) -> 124252261 | K119: =SUM(K111:K118) -> 143937768 | L119: =SUM(L111:L118) -> 0 | M119: =SUM(M111:M118) -> 0 | N119: =SUM(N111:N118) -> 0 | O119: =SUM(O111:O118) -> 0 | P119: =SUM(P111:P118) -> 0 | Q119: =SUM(Q111:Q118) -> 0 | R119: =SUM(R111:R118) -> 0 | S119: =SUM(S111:S118) -> 0 | T119: =SUM(T111:T118) -> 0 | U119: =SUM(U111:U118) -> 0 | V119: =SUM(V111:V118) -> 0 | W119: =SUM(W111:W118) -> 0
A120: B | B120: Okhahlamba | C120: KZN235 | D120: 37980868 | E120: 37980868 | F120: -17545230 | G120: =IF(($D120 =0),0,($F120 /$D120 )) -> -0.4619491582 | H120: -23134715 | I120: 2057954 | J120: 3531531 | K120: -17545230 | L120: 0 | M120: 0 | N120: 0 | O120: 0 | P120: 0 | Q120: 0 | R120: 0 | S120: 0 | T120: 0 | U120: 0 | V120: 0 | W120: 0
A121: B | B121: Inkosi Langalibalele | C121: KZN237 | D121: 38986739 | E121: 38986739 | F121: 17862996 | G121: =IF(($D121 =0),0,($F121 /$D121 )) -> 0.4581813319 | H121: 5592301 | I121: 9748366 | J121: 2522329 | K121: 17862996 | L121: 0 | M121: 0 | N121: 0 | O121: 0 | P121: 0 | Q121: 0 | R121: 0 | S121: 0 | T121: 0 | U121: 0 | V121: 0 | W121: 0
A122: B | B122: Alfred Duma | C122: KZN238 | D122: 151577520 | E122: 151577520 | F122: 62561533 | G122: =IF(($D122 =0),0,($F122 /$D122 )) -> 0.4127362224 | H122: 402364 | I122: 19128884 | J122: 43030285 | K122: 62561533 | L122: 0 | M122: 0 | N122: 0 | O122: 0 | P122: 0 | Q122: 0 | R122: 0 | S122: 0 | T122: 0 | U122: 0 | V122: 0 | W122: 0
A123: C | B123: Uthukela | C123: DC23 | D123: 273623016 | E123: 273623016 | F123: 4801050 | G123: =IF(($D123 =0),0,($F123 /$D123 )) -> 0.01754622133 | H123: 134883 | I123: 2585134 | J123: 2081033 | K123: 4801050 | L123: 0 | M123: 0 | N123: 0 | O123: 0 | P123: 0 | Q123: 0 | R123: 0 | S123: 0 | T123: 0 | U123: 0 | V123: 0 | W123: 0
B124: Total Uthukela | D124: =SUM(D120:D123) -> 502168143 | E124: =SUM(E120:E123) -> 502168143 | F124: =SUM(F120:F123) -> 67680349 | G124: =IF(($D124 =0),0,($F124 /$D124 )) -> 0.1347762695 | H124: =SUM(H120:H123) -> -17005167 | I124: =SUM(I120:I123) -> 33520338 | J124: =SUM(J120:J123) -> 51165178 | K124: =SUM(K120:K123) -> 67680349 | L124: =SUM(L120:L123) -> 0 | M124: =SUM(M120:M123) -> 0 | N124: =SUM(N120:N123) -> 0 | O124: =SUM(O120:O123) -> 0 | P124: =SUM(P120:P123) -> 0 | Q124: =SUM(Q120:Q123) -> 0 | R124: =SUM(R120:R123) -> 0 | S124: =SUM(S120:S123) -> 0 | T124: =SUM(T120:T123) -> 0 | U124: =SUM(U120:U123) -> 0 | V124: =SUM(V120:V123) -> 0 | W124: =SUM(W120:W123) -> 0
A125: B | B125: Endumeni | C125: KZN241 | D125: 43779350 | E125: 43779350 | F125: 3978366 | G125: =IF(($D125 =0),0,($F125 /$D125 )) -> 0.09087311712 | H125: 0 | I125: 1320525 | J125: 2657841 | K125: 3978366 | L125: 0 | M125: 0 | N125: 0 | O125: 0 | P125: 0 | Q125: 0 | R125: 0 | S125: 0 | T125: 0 | U125: 0 | V125: 0 | W125: 0
A126: B | B126: Nquthu | C126: KZN242 | D126: 55591859 | E126: 55591859 | F126: 12478703 | G126: =IF(($D126 =0),0,($F126 /$D126 )) -> 0.2244699714 | H126: 4742470 | I126: 1581558 | J126: 6154675 | K126: 12478703 | L126: 0 | M126: 0 | N126: 0 | O126: 0 | P126: 0 | Q126: 0 | R126: 0 | S126: 0 | T126: 0 | U126: 0 | V126: 0 | W126: 0
A127: B | B127: Msinga | C127: KZN244 | D127: 82351927 | E127: 82351927 | F127: 15103673 | G127: =IF(($D127 =0),0,($F127 /$D127 )) -> 0.1834040022 | H127: 3107014 | I127: 7538435 | J127: 4458224 | K127: 15103673 | L127: 0 | M127: 0 | N127: 0 | O127: 0 | P127: 0 | Q127: 0 | R127: 0 | S127: 0 | T127: 0 | U127: 0 | V127: 0 | W127: 0
A128: B | B128: Umvoti | C128: KZN245 | D128: 64618156 | E128: 64618156 | F128: 14809707 | G128: =IF(($D128 =0),0,($F128 /$D128 )) -> 0.2291880164 | H128: 4166741 | I128: 3196790 | J128: 7446176 | K128: 14809707 | L128: 0 | M128: 0 | N128: 0 | O128: 0 | P128: 0 | Q128: 0 | R128: 0 | S128: 0 | T128: 0 | U128: 0 | V128: 0 | W128: 0
A129: C | B129: Umzinyathi | C129: DC24 | D129: 244964495 | E129: 244964495 | F129: 34749171 | G129: =IF(($D129 =0),0,($F129 /$D129 )) -> 0.1418539083 | H129: 11323123 | I129: 745354 | J129: 22680694 | K129: 34749171 | L129: 0 | M129: 0 | N129: 0 | O129: 0 | P129: 0 | Q129: 0 | R129: 0 | S129: 0 | T129: 0 | U129: 0 | V129: 0 | W129: 0
B130: Total Umzinyathi | D130: =SUM(D125:D129) -> 491305787 | E130: =SUM(E125:E129) -> 491305787 | F130: =SUM(F125:F129) -> 81119620 | G130: =IF(($D130 =0),0,($F130 /$D130 )) -> 0.1651102473 | H130: =SUM(H125:H129) -> 23339348 | I130: =SUM(I125:I129) -> 14382662 | J130: =SUM(J125:J129) -> 43397610 | K130: =SUM(K125:K129) -> 81119620 | L130: =SUM(L125:L129) -> 0 | M130: =SUM(M125:M129) -> 0 | N130: =SUM(N125:N129) -> 0 | O130: =SUM(O125:O129) -> 0 | P130: =SUM(P125:P129) -> 0 | Q130: =SUM(Q125:Q129) -> 0 | R130: =SUM(R125:R129) -> 0 | S130: =SUM(S125:S129) -> 0 | T130: =SUM(T125:T129) -> 0 | U130: =SUM(U125:U129) -> 0 | V130: =SUM(V125:V129) -> 0 | W130: =SUM(W125:W129) -> 0
A131: B | B131: Newcastle | C131: KZN252 | D131: 235557737 | E131: 235557737 | F131: 24895941 | G131: =IF(($D131 =0),0,($F131 /$D131 )) -> 0.1056893368 | H131: 1776341 | I131: 10338938 | J131: 12780662 | K131: 24895941 | L131: 0 | M131: 0 | N131: 0 | O131: 0 | P131: 0 | Q131: 0 | R131: 0 | S131: 0 | T131: 0 | U131: 0 | V131: 0 | W131: 0
A132: B | B132: Emadlangeni | C132: KZN253 | D132: 26346958 | E132: 26346958 | F132: 6204748 | G132: =IF(($D132 =0),0,($F132 /$D132 )) -> 0.2355014951 | H132: 1222607 | I132: 3132272 | J132: 1849869 | K132: 6204748 | L132: 0 | M132: 0 | N132: 0 | O132: 0 | P132: 0 | Q132: 0 | R132: 0 | S132: 0 | T132: 0 | U132: 0 | V132: 0 | W132: 0
A133: B | B133: Dannhauser | C133: KZN254 | D133: 86900504 | E133: 86900504 | F133: 7058379 | G133: =IF(($D133 =0),0,($F133 /$D133 )) -> 0.08122368312 | H133: 2328586 | I133: 1750432 | J133: 2979361 | K133: 7058379 | L133: 0 | M133: 0 | N133: 0 | O133: 0 | P133: 0 | Q133: 0 | R133: 0 | S133: 0 | T133: 0 | U133: 0 | V133: 0 | W133: 0
A134: C | B134: Amajuba | C134: DC25 | D134: 126845781 | E134: 126845781 | F134: 39213276 | G134: =IF(($D134 =0),0,($F134 /$D134 )) -> 0.3091413502 | H134: -95908368 | I134: 25379834 | J134: 109741810 | K134: 39213276 | L134: 0 | M134: 0 | N134: 0 | O134: 0 | P134: 0 | Q134: 0 | R134: 0 | S134: 0 | T134: 0 | U134: 0 | V134: 0 | W134: 0
B135: Total Amajuba | D135: =SUM(D131:D134) -> 475650980 | E135: =SUM(E131:E134) -> 475650980 | F135: =SUM(F131:F134) -> 77372344 | G135: =IF(($D135 =0),0,($F135 /$D135 )) -> 0.1626662138 | H135: =SUM(H131:H134) -> -90580834 | I135: =SUM(I131:I134) -> 40601476 | J135: =SUM(J131:J134) -> 127351702 | K135: =SUM(K131:K134) -> 77372344 | L135: =SUM(L131:L134) -> 0 | M135: =SUM(M131:M134) -> 0 | N135: =SUM(N131:N134) -> 0 | O135: =SUM(O131:O134) -> 0 | P135: =SUM(P131:P134) -> 0 | Q135: =SUM(Q131:Q134) -> 0 | R135: =SUM(R131:R134) -> 0 | S135: =SUM(S131:S134) -> 0 | T135: =SUM(T131:T134) -> 0 | U135: =SUM(U131:U134) -> 0 | V135: =SUM(V131:V134) -> 0 | W135: =SUM(W131:W134) -> 0
A136: B | B136: eDumbe | C136: KZN261 | D136: 18142965 | E136: 18142965 | F136: 4324023 | G136: =IF(($D136 =0),0,($F136 /$D136 )) -> 0.2383305595 | H136: 2669304 | I136: 1021214 | J136: 633505 | K136: 4324023 | L136: 0 | M136: 0 | N136: 0 | O136: 0 | P136: 0 | Q136: 0 | R136: 0 | S136: 0 | T136: 0 | U136: 0 | V136: 0 | W136: 0
A137: B | B137: uPhongolo | C137: KZN262 | D137: 55753667 | E137: 55753667 | F137: 13082573 | G137: =IF(($D137 =0),0,($F137 /$D137 )) -> 0.2346495523 | H137: 2039315 | I137: -100792052 | J137: 111835310 | K137: 13082573 | L137: 0 | M137: 0 | N137: 0 | O137: 0 | P137: 0 | Q137: 0 | R137: 0 | S137: 0 | T137: 0 | U137: 0 | V137: 0 | W137: 0
A138: B | B138: Abaqulusi | C138: KZN263 | D138: 78002288 | E138: 78002288 | F138: 9635634 | G138: =IF(($D138 =0),0,($F138 /$D138 )) -> 0.1235301457 | H138: 5178035 | I138: 3367729 | J138: 1089870 | K138: 9635634 | L138: 0 | M138: 0 | N138: 0 | O138: 0 | P138: 0 | Q138: 0 | R138: 0 | S138: 0 | T138: 0 | U138: 0 | V138: 0 | W138: 0
A139: B | B139: Nongoma | C139: KZN265 | D139: 43191305 | E139: 43191305 | F139: -105194656 | G139: =IF(($D139 =0),0,($F139 /$D139 )) -> -2.435551693 | H139: -111306804 | I139: 118607727 | J139: -112495579 | K139: -105194656 | L139: 0 | M139: 0 | N139: 0 | O139: 0 | P139: 0 | Q139: 0 | R139: 0 | S139: 0 | T139: 0 | U139: 0 | V139: 0 | W139: 0
A140: B | B140: Ulundi | C140: KZN266 | D140: 52328981 | E140: 52328981 | F140: 19597251 | G140: =IF(($D140 =0),0,($F140 /$D140 )) -> 0.3745009099 | H140: 5704881 | I140: 8329907 | J140: 5562463 | K140: 19597251 | L140: 0 | M140: 0 | N140: 0 | O140: 0 | P140: 0 | Q140: 0 | R140: 0 | S140: 0 | T140: 0 | U140: 0 | V140: 0 | W140: 0
A141: C | B141: Zululand | C141: DC26 | D141: 742877267 | E141: 742877267 | F141: 121102433 | G141: =IF(($D141 =0),0,($F141 /$D141 )) -> 0.1630180898 | H141: 51835597 | I141: 34130863 | J141: 35135973 | K141: 121102433 | L141: 0 | M141: 0 | N141: 0 | O141: 0 | P141: 0 | Q141: 0 | R141: 0 | S141: 0 | T141: 0 | U141: 0 | V141: 0 | W141: 0
B142: Total Zululand | D142: =SUM(D136:D141) -> 990296473 | E142: =SUM(E136:E141) -> 990296473 | F142: =SUM(F136:F141) -> 62547258 | G142: =IF(($D142 =0),0,($F142 /$D142 )) -> 0.06316013407 | H142: =SUM(H136:H141) -> -43879672 | I142: =SUM(I136:I141) -> 64665388 | J142: =SUM(J136:J141) -> 41761542 | K142: =SUM(K136:K141) -> 62547258 | L142: =SUM(L136:L141) -> 0 | M142: =SUM(M136:M141) -> 0 | N142: =SUM(N136:N141) -> 0 | O142: =SUM(O136:O141) -> 0 | P142: =SUM(P136:P141) -> 0 | Q142: =SUM(Q136:Q141) -> 0 | R142: =SUM(R136:R141) -> 0 | S142: =SUM(S136:S141) -> 0 | T142: =SUM(T136:T141) -> 0 | U142: =SUM(U136:U141) -> 0 | V142: =SUM(V136:V141) -> 0 | W142: =SUM(W136:W141) -> 0
A143: B | B143: Umhlabuyalingana | C143: KZN271 | D143: 39592590 | E143: 39592590 | F143: 5898496 | G143: =IF(($D143 =0),0,($F143 /$D143 )) -> 0.1489797965 | H143: -38739746 | I143: 44638242 | J143: 0 | K143: 5898496 | L143: 0 | M143: 0 | N143: 0 | O143: 0 | P143: 0 | Q143: 0 | R143: 0 | S143: 0 | T143: 0 | U143: 0 | V143: 0 | W143: 0
A144: B | B144: Jozini | C144: KZN272 | D144: 46337218 | E144: 46337218 | F144: 6911713 | G144: =IF(($D144 =0),0,($F144 /$D144 )) -> 0.1491611559 | H144: 0 | I144: 6570624 | J144: 341089 | K144: 6911713 | L144: 0 | M144: 0 | N144: 0 | O144: 0 | P144: 0 | Q144: 0 | R144: 0 | S144: 0 | T144: 0 | U144: 0 | V144: 0 | W144: 0
A145: B | B145: Mtubatuba | C145: KZN275 | D145: 45873824 | E145: 45873824 | F145: -156899741 | G145: =IF(($D145 =0),0,($F145 /$D145 )) -> -3.42024552 | H145: -96810334 | I145: -63480679 | J145: 3391272 | K145: -156899741 | L145: 0 | M145: 0 | N145: 0 | O145: 0 | P145: 0 | Q145: 0 | R145: 0 | S145: 0 | T145: 0 | U145: 0 | V145: 0 | W145: 0
A146: B | B146: Hlabisa Big Five | C146: KZN276 | D146: 35362564 | E146: 35362564 | F146: 16771416 | G146: =IF(($D146 =0),0,($F146 /$D146 )) -> 0.4742703612 | H146: 2780816 | I146: 2077310 | J146: 11913290 | K146: 16771416 | L146: 0 | M146: 0 | N146: 0 | O146: 0 | P146: 0 | Q146: 0 | R146: 0 | S146: 0 | T146: 0 | U146: 0 | V146: 0 | W146: 0
A147: C | B147: Umkhanyakude | C147: DC27 | D147: 235745241 | E147: 235745241 | F147: -3232565963 | G147: =IF(($D147 =0),0,($F147 /$D147 )) -> -13.71211546 | H147: 0 | I147: -3254048585 | J147: 21482622 | K147: -3232565963 | L147: 0 | M147: 0 | N147: 0 | O147: 0 | P147: 0 | Q147: 0 | R147: 0 | S147: 0 | T147: 0 | U147: 0 | V147: 0 | W147: 0
B148: Total Umkhanyakude | D148: =SUM(D143:D147) -> 402911437 | E148: =SUM(E143:E147) -> 402911437 | F148: =SUM(F143:F147) -> -3359884079 | G148: =IF(($D148 =0),0,($F148 /$D148 )) -> -8.339013913 | H148: =SUM(H143:H147) -> -132769264 | I148: =SUM(I143:I147) -> -3264243088 | J148: =SUM(J143:J147) -> 37128273 | K148: =SUM(K143:K147) -> -3359884079 | L148: =SUM(L143:L147) -> 0 | M148: =SUM(M143:M147) -> 0 | N148: =SUM(N143:N147) -> 0 | O148: =SUM(O143:O147) -> 0 | P148: =SUM(P143:P147) -> 0 | Q148: =SUM(Q143:Q147) -> 0 | R148: =SUM(R143:R147) -> 0 | S148: =SUM(S143:S147) -> 0 | T148: =SUM(T143:T147) -> 0 | U148: =SUM(U143:U147) -> 0 | V148: =SUM(V143:V147) -> 0 | W148: =SUM(W143:W147) -> 0
A149: B | B149: Mfolozi | C149: KZN281 | D149: 35346390 | E149: 35346390 | F149: 7246190 | G149: =IF(($D149 =0),0,($F149 /$D149 )) -> 0.2050050939 | H149: 4123683 | I149: 740201 | J149: 2382306 | K149: 7246190 | L149: 0 | M149: 0 | N149: 0 | O149: 0 | P149: 0 | Q149: 0 | R149: 0 | S149: 0 | T149: 0 | U149: 0 | V149: 0 | W149: 0
A150: B | B150: uMhlathuze | C150: KZN282 | D150: 457358700 | E150: 457358700 | F150: 59874669 | G150: =IF(($D150 =0),0,($F150 /$D150 )) -> 0.1309140266 | H150: 6836198 | I150: 33082914 | J150: 19955557 | K150: 59874669 | L150: 0 | M150: 0 | N150: 0 | O150: 0 | P150: 0 | Q150: 0 | R150: 0 | S150: 0 | T150: 0 | U150: 0 | V150: 0 | W150: 0
A151: B | B151: uMlalazi | C151: KZN284 | D151: 49222330 | E151: 49222330 | F151: 57301654 | G151: =IF(($D151 =0),0,($F151 /$D151 )) -> 1.164139406 | H151: 46919716 | I151: 9596661 | J151: 785277 | K151: 57301654 | L151: 0 | M151: 0 | N151: 0 | O151: 0 | P151: 0 | Q151: 0 | R151: 0 | S151: 0 | T151: 0 | U151: 0 | V151: 0 | W151: 0
A152: B | B152: Mthonjaneni | C152: KZN285 | D152: 34949566 | E152: 34949566 | F152: 4593580 | G152: =IF(($D152 =0),0,($F152 /$D152 )) -> 0.1314345363 | H152: 1509605 | I152: 2689371 | J152: 394604 | K152: 4593580 | L152: 0 | M152: 0 | N152: 0 | O152: 0 | P152: 0 | Q152: 0 | R152: 0 | S152: 0 | T152: 0 | U152: 0 | V152: 0 | W152: 0
A153: B | B153: Nkandla | C153: KZN286 | D153: 41158784 | E153: 41158784 | F153: 7950316 | G153: =IF(($D153 =0),0,($F153 /$D153 )) -> 0.193162072 | H153: -575363895 | I153: 579327820 | J153: 3986391 | K153: 7950316 | L153: 0 | M153: 0 | N153: 0 | O153: 0 | P153: 0 | Q153: 0 | R153: 0 | S153: 0 | T153: 0 | U153: 0 | V153: 0 | W153: 0
A154: C | B154: King Cetshwayo | C154: DC28 | D154: 413162913 | E154: 417016598 | F154: 113718912 | G154: =IF(($D154 =0),0,($F154 /$D154 )) -> 0.2752398834 | H154: 21216701 | I154: 48679764 | J154: 43822447 | K154: 113718912 | L154: 0 | M154: 0 | N154: 0 | O154: 0 | P154: 0 | Q154: 0 | R154: 0 | S154: 0 | T154: 0 | U154: 0 | V154: 0 | W154: 0
B155: Total King Cetshwayo | D155: =SUM(D149:D154) -> 1031198683 | E155: =SUM(E149:E154) -> 1035052368 | F155: =SUM(F149:F154) -> 250685321 | G155: =IF(($D155 =0),0,($F155 /$D155 )) -> 0.2431008933 | H155: =SUM(H149:H154) -> -494757992 | I155: =SUM(I149:I154) -> 674116731 | J155: =SUM(J149:J154) -> 71326582 | K155: =SUM(K149:K154) -> 250685321 | L155: =SUM(L149:L154) -> 0 | M155: =SUM(M149:M154) -> 0 | N155: =SUM(N149:N154) -> 0 | O155: =SUM(O149:O154) -> 0 | P155: =SUM(P149:P154) -> 0 | Q155: =SUM(Q149:Q154) -> 0 | R155: =SUM(R149:R154) -> 0 | S155: =SUM(S149:S154) -> 0 | T155: =SUM(T149:T154) -> 0 | U155: =SUM(U149:U154) -> 0 | V155: =SUM(V149:V154) -> 0 | W155: =SUM(W149:W154) -> 0
A156: B | B156: Mandeni | C156: KZN291 | D156: 130595842 | E156: 130595842 | F156: 17420276 | G156: =IF(($D156 =0),0,($F156 /$D156 )) -> 0.13339074 | H156: 1180235 | I156: 8731124 | J156: 7508917 | K156: 17420276 | L156: 0 | M156: 0 | N156: 0 | O156: 0 | P156: 0 | Q156: 0 | R156: 0 | S156: 0 | T156: 0 | U156: 0 | V156: 0 | W156: 0
A157: B | B157: KwaDukuza | C157: KZN292 | D157: 230796621 | E157: 230796621 | F157: 37551012 | G157: =IF(($D157 =0),0,($F157 /$D157 )) -> 0.1627017408 | H157: 4808002 | I157: 14799214 | J157: 17943796 | K157: 37551012 | L157: 0 | M157: 0 | N157: 0 | O157: 0 | P157: 0 | Q157: 0 | R157: 0 | S157: 0 | T157: 0 | U157: 0 | V157: 0 | W157: 0
A158: B | B158: Ndwedwe | C158: KZN293 | D158: 68805021 | E158: 68805021 | F158: -60885903 | G158: =IF(($D158 =0),0,($F158 /$D158 )) -> -0.8849049403 | H158: 3676129 | I158: -69987671 | J158: 5425639 | K158: -60885903 | L158: 0 | M158: 0 | N158: 0 | O158: 0 | P158: 0 | Q158: 0 | R158: 0 | S158: 0 | T158: 0 | U158: 0 | V158: 0 | W158: 0
A159: B | B159: Maphumulo | C159: KZN294 | D159: 43417044 | E159: 43417044 | F159: -61485547 | G159: =IF(($D159 =0),0,($F159 /$D159 )) -> -1.416161519 | H159: 4234063 | I159: -69055796 | J159: 3336186 | K159: -61485547 | L159: 0 | M159: 0 | N159: 0 | O159: 0 | P159: 0 | Q159: 0 | R159: 0 | S159: 0 | T159: 0 | U159: 0 | V159: 0 | W159: 0
A160: C | B160: iLembe | C160: DC29 | D160: 357452566 | E160: 357452566 | F160: 47510708 | G160: =IF(($D160 =0),0,($F160 /$D160 )) -> 0.1329147208 | H160: 14051178 | I160: 12886563 | J160: 20572967 | K160: 47510708 | L160: 0 | M160: 0 | N160: 0 | O160: 0 | P160: 0 | Q160: 0 | R160: 0 | S160: 0 | T160: 0 | U160: 0 | V160: 0 | W160: 0
B161: Total iLembe | D161: =SUM(D156:D160) -> 831067094 | E161: =SUM(E156:E160) -> 831067094 | F161: =SUM(F156:F160) -> -19889454 | G161: =IF(($D161 =0),0,($F161 /$D161 )) -> -0.02393242873 | H161: =SUM(H156:H160) -> 27949607 | I161: =SUM(I156:I160) -> -102626566 | J161: =SUM(J156:J160) -> 54787505 | K161: =SUM(K156:K160) -> -19889454 | L161: =SUM(L156:L160) -> 0 | M161: =SUM(M156:M160) -> 0 | N161: =SUM(N156:N160) -> 0 | O161: =SUM(O156:O160) -> 0 | P161: =SUM(P156:P160) -> 0 | Q161: =SUM(Q156:Q160) -> 0 | R161: =SUM(R156:R160) -> 0 | S161: =SUM(S156:S160) -> 0 | T161: =SUM(T156:T160) -> 0 | U161: =SUM(U156:U160) -> 0 | V161: =SUM(V156:V160) -> 0 | W161: =SUM(W156:W160) -> 0
A162: B | B162: Greater Kokstad | C162: KZN433 | D162: 81216430 | E162: 81216430 | F162: 8522861 | G162: =IF(($D162 =0),0,($F162 /$D162 )) -> 0.1049401088 | H162: 0 | I162: 4307669 | J162: 4215192 | K162: 8522861 | L162: 0 | M162: 0 | N162: 0 | O162: 0 | P162: 0 | Q162: 0 | R162: 0 | S162: 0 | T162: 0 | U162: 0 | V162: 0 | W162: 0
A163: B | B163: Johannes Phumani Phungula | C163: KZN434 | D163: 71203362 | E163: 71203362 | F163: 13361168 | G163: =IF(($D163 =0),0,($F163 /$D163 )) -> 0.1876479934 | H163: 2157323 | I163: 3517189 | J163: 7686656 | K163: 13361168 | L163: 0 | M163: 0 | N163: 0 | O163: 0 | P163: 0 | Q163: 0 | R163: 0 | S163: 0 | T163: 0 | U163: 0 | V163: 0 | W163: 0
A164: B | B164: Umzimkhulu | C164: KZN435 | D164: 99915220 | E164: 99915220 | F164: 24439414 | G164: =IF(($D164 =0),0,($F164 /$D164 )) -> 0.2446015132 | H164: 9493725 | I164: 7484153 | J164: 7461536 | K164: 24439414 | L164: 0 | M164: 0 | N164: 0 | O164: 0 | P164: 0 | Q164: 0 | R164: 0 | S164: 0 | T164: 0 | U164: 0 | V164: 0 | W164: 0
A165: B | B165: Dr Nkosazana Dlamini Zuma | C165: KZN436 | D165: 62832633 | E165: 62832633 | F165: 5653600 | G165: =IF(($D165 =0),0,($F165 /$D165 )) -> 0.08997872173 | H165: 322099 | I165: 2881271 | J165: 2450230 | K165: 5653600 | L165: 0 | M165: 0 | N165: 0 | O165: 0 | P165: 0 | Q165: 0 | R165: 0 | S165: 0 | T165: 0 | U165: 0 | V165: 0 | W165: 0
A166: C | B166: Harry Gwala | C166: DC43 | D166: 302059735 | E166: 302059735 | F166: 55085722 | G166: =IF(($D166 =0),0,($F166 /$D166 )) -> 0.1823669812 | H166: 23115505 | I166: 13390981 | J166: 18579236 | K166: 55085722 | L166: 0 | M166: 0 | N166: 0 | O166: 0 | P166: 0 | Q166: 0 | R166: 0 | S166: 0 | T166: 0 | U166: 0 | V166: 0 | W166: 0
B167: Total Harry Gwala | D167: =SUM(D162:D166) -> 617227380 | E167: =SUM(E162:E166) -> 617227380 | F167: =SUM(F162:F166) -> 107062765 | G167: =IF(($D167 =0),0,($F167 /$D167 )) -> 0.1734575757 | H167: =SUM(H162:H166) -> 35088652 | I167: =SUM(I162:I166) -> 31581263 | J167: =SUM(J162:J166) -> 40392850 | K167: =SUM(K162:K166) -> 107062765 | L167: =SUM(L162:L166) -> 0 | M167: =SUM(M162:M166) -> 0 | N167: =SUM(N162:N166) -> 0 | O167: =SUM(O162:O166) -> 0 | P167: =SUM(P162:P166) -> 0 | Q167: =SUM(Q162:Q166) -> 0 | R167: =SUM(R162:R166) -> 0 | S167: =SUM(S162:S166) -> 0 | T167: =SUM(T162:T166) -> 0 | U167: =SUM(U162:U166) -> 0 | V167: =SUM(V162:V166) -> 0 | W167: =SUM(W162:W166) -> 0
B168: Total Kwazulu-Natal | D168: =SUM(D103,D105:D109,D111:D118,D120:D123,D125:D129,D131:D134,D136:D141,D143:D147,D149:D154,D156:D160,D162:D166) -> 14462698733 | E168: =SUM(E103,E105:E109,E111:E118,E120:E123,E125:E129,E131:E134,E136:E141,E143:E147,E149:E154,E156:E160,E162:E166) -> 14466552418 | F168: =SUM(F103,F105:F109,F111:F118,F120:F123,F125:F129,F131:F134,F136:F141,F143:F147,F149:F154,F156:F160,F162:F166) -> -1694664898 | G168: =IF(($D168 =0),0,($F168 /$D168 )) -> -0.1171748737 | H168: =SUM(H103,H105:H109,H111:H118,H120:H123,H125:H129,H131:H134,H136:H141,H143:H147,H149:H154,H156:H160,H162:H166) -> -595571414 | I168: =SUM(I103,I105:I109,I111:I118,I120:I123,I125:I129,I131:I134,I136:I141,I143:I147,I149:I154,I156:I160,I162:I166) -> -2148850281 | J168: =SUM(J103,J105:J109,J111:J118,J120:J123,J125:J129,J131:J134,J136:J141,J143:J147,J149:J154,J156:J160,J162:J166) -> 1049756797 | K168: =SUM(K103,K105:K109,K111:K118,K120:K123,K125:K129,K131:K134,K136:K141,K143:K147,K149:K154,K156:K160,K162:K166) -> -1694664898 | L168: =SUM(L103,L105:L109,L111:L118,L120:L123,L125:L129,L131:L134,L136:L141,L143:L147,L149:L154,L156:L160,L162:L166) -> 0 | M168: =SUM(M103,M105:M109,M111:M118,M120:M123,M125:M129,M131:M134,M136:M141,M143:M147,M149:M154,M156:M160,M162:M166) -> 0 | N168: =SUM(N103,N105:N109,N111:N118,N120:N123,N125:N129,N131:N134,N136:N141,N143:N147,N149:N154,N156:N160,N162:N166) -> 0 | O168: =SUM(O103,O105:O109,O111:O118,O120:O123,O125:O129,O131:O134,O136:O141,O143:O147,O149:O154,O156:O160,O162:O166) -> 0 | P168: =SUM(P103,P105:P109,P111:P118,P120:P123,P125:P129,P131:P134,P136:P141,P143:P147,P149:P154,P156:P160,P162:P166) -> 0 | Q168: =SUM(Q103,Q105:Q109,Q111:Q118,Q120:Q123,Q125:Q129,Q131:Q134,Q136:Q141,Q143:Q147,Q149:Q154,Q156:Q160,Q162:Q166) -> 0 | R168: =SUM(R103,R105:R109,R111:R118,R120:R123,R125:R129,R131:R134,R136:R141,R143:R147,R149:R154,R156:R160,R162:R166) -> 0 | S168: =SUM(S103,S105:S109,S111:S118,S120:S123,S125:S129,S131:S134,S136:S141,S143:S147,S149:S154,S156:S160,S162:S166) -> 0 | T168: =SUM(T103,T105:T109,T111:T118,T120:T123,T125:T129,T131:T134,T136:T141,T143:T147,T149:T154,T156:T160,T162:T166) -> 0 | U168: =SUM(U103,U105:U109,U111:U118,U120:U123,U125:U129,U131:U134,U136:U141,U143:U147,U149:U154,U156:U160,U162:U166) -> 0 | V168: =SUM(V103,V105:V109,V111:V118,V120:V123,V125:V129,V131:V134,V136:V141,V143:V147,V149:V154,V156:V160,V162:V166) -> 0 | W168: =SUM(W103,W105:W109,W111:W118,W120:W123,W125:W129,W131:W134,W136:W141,W143:W147,W149:W154,W156:W160,W162:W166) -> 0
B170: LIMPOPO
A171: B | B171: Greater Giyani | C171: LIM331 | D171: 136280699 | E171: 136280699 | F171: 33050932 | G171: =IF(($D171 =0),0,($F171 /$D171 )) -> 0.2425210044 | H171: 0 | I171: 13966742 | J171: 19084190 | K171: 33050932 | L171: 0 | M171: 0 | N171: 0 | O171: 0 | P171: 0 | Q171: 0 | R171: 0 | S171: 0 | T171: 0 | U171: 0 | V171: 0 | W171: 0
A172: B | B172: Greater Letaba | C172: LIM332 | D172: 105895752 | E172: 105895752 | F172: 25591654 | G172: =IF(($D172 =0),0,($F172 /$D172 )) -> 0.2416683721 | H172: 11612754 | I172: 4740621 | J172: 9238279 | K172: 25591654 | L172: 0 | M172: 0 | N172: 0 | O172: 0 | P172: 0 | Q172: 0 | R172: 0 | S172: 0 | T172: 0 | U172: 0 | V172: 0 | W172: 0
A173: B | B173: Greater Tzaneen | C173: LIM333 | D173: 272642599 | E173: 272642599 | F173: 27487394 | G173: =IF(($D173 =0),0,($F173 /$D173 )) -> 0.1008184125 | H173: 1769141 | I173: 15188668 | J173: 10529585 | K173: 27487394 | L173: 0 | M173: 0 | N173: 0 | O173: 0 | P173: 0 | Q173: 0 | R173: 0 | S173: 0 | T173: 0 | U173: 0 | V173: 0 | W173: 0
A174: B | B174: Ba-Phalaborwa | C174: LIM334 | D174: 59318913 | E174: 68014565 | F174: 10172355 | G174: =IF(($D174 =0),0,($F174 /$D174 )) -> 0.1714858632 | H174: 9644665 | I174: 16000 | J174: 511690 | K174: 10172355 | L174: 0 | M174: 0 | N174: 0 | O174: 0 | P174: 0 | Q174: 0 | R174: 0 | S174: 0 | T174: 0 | U174: 0 | V174: 0 | W174: 0
A175: B | B175: Maruleng | C175: LIM335 | D175: 194005580 | E175: 194005580 | F175: 85093659 | G175: =IF(($D175 =0),0,($F175 /$D175 )) -> 0.4386144924 | H175: 31661902 | I175: 18250076 | J175: 35181681 | K175: 85093659 | L175: 0 | M175: 0 | N175: 0 | O175: 0 | P175: 0 | Q175: 0 | R175: 0 | S175: 0 | T175: 0 | U175: 0 | V175: 0 | W175: 0
A176: C | B176: Mopani | C176: DC33 | D176: 644467188 | E176: 644467188 | F176: 61488798 | G176: =IF(($D176 =0),0,($F176 /$D176 )) -> 0.09541028488 | H176: 5155488 | I176: 28175882 | J176: 28157428 | K176: 61488798 | L176: 0 | M176: 0 | N176: 0 | O176: 0 | P176: 0 | Q176: 0 | R176: 0 | S176: 0 | T176: 0 | U176: 0 | V176: 0 | W176: 0
B177: Total Mopani | D177: =SUM(D171:D176) -> 1412610731 | E177: =SUM(E171:E176) -> 1421306383 | F177: =SUM(F171:F176) -> 242884792 | G177: =IF(($D177 =0),0,($F177 /$D177 )) -> 0.171940356 | H177: =SUM(H171:H176) -> 59843950 | I177: =SUM(I171:I176) -> 80337989 | J177: =SUM(J171:J176) -> 102702853 | K177: =SUM(K171:K176) -> 242884792 | L177: =SUM(L171:L176) -> 0 | M177: =SUM(M171:M176) -> 0 | N177: =SUM(N171:N176) -> 0 | O177: =SUM(O171:O176) -> 0 | P177: =SUM(P171:P176) -> 0 | Q177: =SUM(Q171:Q176) -> 0 | R177: =SUM(R171:R176) -> 0 | S177: =SUM(S171:S176) -> 0 | T177: =SUM(T171:T176) -> 0 | U177: =SUM(U171:U176) -> 0 | V177: =SUM(V171:V176) -> 0 | W177: =SUM(W171:W176) -> 0
A178: B | B178: Musina | C178: LIM341 | D178: 132681500 | E178: 132681500 | F178: 19323308 | G178: =IF(($D178 =0),0,($F178 /$D178 )) -> 0.1456367919 | H178: 11451017 | I178: 2002792 | J178: 5869499 | K178: 19323308 | L178: 0 | M178: 0 | N178: 0 | O178: 0 | P178: 0 | Q178: 0 | R178: 0 | S178: 0 | T178: 0 | U178: 0 | V178: 0 | W178: 0
A179: B | B179: Thulamela | C179: LIM343 | D179: 184337128 | E179: 184337128 | F179: 43608836 | G179: =IF(($D179 =0),0,($F179 /$D179 )) -> 0.2365710938 | H179: 17651433 | I179: 13894144 | J179: 12063259 | K179: 43608836 | L179: 0 | M179: 0 | N179: 0 | O179: 0 | P179: 0 | Q179: 0 | R179: 0 | S179: 0 | T179: 0 | U179: 0 | V179: 0 | W179: 0
A180: B | B180: Makhado | C180: LIM344 | D180: 272154816 | E180: 272154816 | F180: 65866289 | G180: =IF(($D180 =0),0,($F180 /$D180 )) -> 0.2420177235 | H180: 31203133 | I180: 11462952 | J180: 23200204 | K180: 65866289 | L180: 0 | M180: 0 | N180: 0 | O180: 0 | P180: 0 | Q180: 0 | R180: 0 | S180: 0 | T180: 0 | U180: 0 | V180: 0 | W180: 0
A181: B | B181: Collins Chabane | C181: LIM345 | D181: 223119000 | E181: 223119000 | F181: 66257218 | G181: =IF(($D181 =0),0,($F181 /$D181 )) -> 0.2969591025 | H181: 17056693 | I181: 22612145 | J181: 26588380 | K181: 66257218 | L181: 0 | M181: 0 | N181: 0 | O181: 0 | P181: 0 | Q181: 0 | R181: 0 | S181: 0 | T181: 0 | U181: 0 | V181: 0 | W181: 0
A182: C | B182: Vhembe | C182: DC34 | D182: 786704023 | E182: 786704023 | F182: 211706969 | G182: =IF(($D182 =0),0,($F182 /$D182 )) -> 0.2691062494 | H182: 70998337 | I182: 89765824 | J182: 50942808 | K182: 211706969 | L182: 0 | M182: 0 | N182: 0 | O182: 0 | P182: 0 | Q182: 0 | R182: 0 | S182: 0 | T182: 0 | U182: 0 | V182: 0 | W182: 0
B183: Total Vhembe | D183: =SUM(D178:D182) -> 1598996467 | E183: =SUM(E178:E182) -> 1598996467 | F183: =SUM(F178:F182) -> 406762620 | G183: =IF(($D183 =0),0,($F183 /$D183 )) -> 0.2543861906 | H183: =SUM(H178:H182) -> 148360613 | I183: =SUM(I178:I182) -> 139737857 | J183: =SUM(J178:J182) -> 118664150 | K183: =SUM(K178:K182) -> 406762620 | L183: =SUM(L178:L182) -> 0 | M183: =SUM(M178:M182) -> 0 | N183: =SUM(N178:N182) -> 0 | O183: =SUM(O178:O182) -> 0 | P183: =SUM(P178:P182) -> 0 | Q183: =SUM(Q178:Q182) -> 0 | R183: =SUM(R178:R182) -> 0 | S183: =SUM(S178:S182) -> 0 | T183: =SUM(T178:T182) -> 0 | U183: =SUM(U178:U182) -> 0 | V183: =SUM(V178:V182) -> 0 | W183: =SUM(W178:W182) -> 0
A184: B | B184: Blouberg | C184: LIM351 | D184: 86964800 | E184: 86964800 | F184: 20590214 | G184: =IF(($D184 =0),0,($F184 /$D184 )) -> 0.236764921 | H184: 2508123 | I184: 10068902 | J184: 8013189 | K184: 20590214 | L184: 0 | M184: 0 | N184: 0 | O184: 0 | P184: 0 | Q184: 0 | R184: 0 | S184: 0 | T184: 0 | U184: 0 | V184: 0 | W184: 0
A185: B | B185: Molemole | C185: LIM353 | D185: 64396800 | E185: 64396800 | F185: 6734191 | G185: =IF(($D185 =0),0,($F185 /$D185 )) -> 0.1045733794 | H185: 2763198 | I185: 1954328 | J185: 2016665 | K185: 6734191 | L185: 0 | M185: 0 | N185: 0 | O185: 0 | P185: 0 | Q185: 0 | R185: 0 | S185: 0 | T185: 0 | U185: 0 | V185: 0 | W185: 0
A186: B | B186: Polokwane | C186: LIM354 | D186: 716060669 | E186: 716060669 | F186: 99403706 | G186: =IF(($D186 =0),0,($F186 /$D186 )) -> 0.1388202289 | H186: 10720353 | I186: 34216763 | J186: 54466590 | K186: 99403706 | L186: 0 | M186: 0 | N186: 0 | O186: 0 | P186: 0 | Q186: 0 | R186: 0 | S186: 0 | T186: 0 | U186: 0 | V186: 0 | W186: 0
A187: B | B187: Lepelle-Nkumpi | C187: LIM355 | D187: 246865699 | E187: 246865699 | F187: 49793894 | G187: =IF(($D187 =0),0,($F187 /$D187 )) -> 0.201704385 | H187: 3950943 | I187: 18259577 | J187: 27583374 | K187: 49793894 | L187: 0 | M187: 0 | N187: 0 | O187: 0 | P187: 0 | Q187: 0 | R187: 0 | S187: 0 | T187: 0 | U187: 0 | V187: 0 | W187: 0
A188: C | B188: Capricorn | C188: DC35 | D188: 393366000 | E188: 393366000 | F188: 117403078 | G188: =IF(($D188 =0),0,($F188 /$D188 )) -> 0.2984576145 | H188: 9569165 | I188: 41385401 | J188: 66448512 | K188: 117403078 | L188: 0 | M188: 0 | N188: 0 | O188: 0 | P188: 0 | Q188: 0 | R188: 0 | S188: 0 | T188: 0 | U188: 0 | V188: 0 | W188: 0
B189: Total Capricorn | D189: =SUM(D184:D188) -> 1507653968 | E189: =SUM(E184:E188) -> 1507653968 | F189: =SUM(F184:F188) -> 293925083 | G189: =IF(($D189 =0),0,($F189 /$D189 )) -> 0.1949552677 | H189: =SUM(H184:H188) -> 29511782 | I189: =SUM(I184:I188) -> 105884971 | J189: =SUM(J184:J188) -> 158528330 | K189: =SUM(K184:K188) -> 293925083 | L189: =SUM(L184:L188) -> 0 | M189: =SUM(M184:M188) -> 0 | N189: =SUM(N184:N188) -> 0 | O189: =SUM(O184:O188) -> 0 | P189: =SUM(P184:P188) -> 0 | Q189: =SUM(Q184:Q188) -> 0 | R189: =SUM(R184:R188) -> 0 | S189: =SUM(S184:S188) -> 0 | T189: =SUM(T184:T188) -> 0 | U189: =SUM(U184:U188) -> 0 | V189: =SUM(V184:V188) -> 0 | W189: =SUM(W184:W188) -> 0
A190: B | B190: Thabazimbi | C190: LIM361 | D190: 109479950 | E190: 109479950 | F190: 16634767 | G190: =IF(($D190 =0),0,($F190 /$D190 )) -> 0.151943502 | H190: 3786801 | I190: 11188236 | J190: 1659730 | K190: 16634767 | L190: 0 | M190: 0 | N190: 0 | O190: 0 | P190: 0 | Q190: 0 | R190: 0 | S190: 0 | T190: 0 | U190: 0 | V190: 0 | W190: 0
A191: B | B191: Lephalale | C191: LIM362 | D191: 157914047 | E191: 157914047 | F191: 38430289 | G191: =IF(($D191 =0),0,($F191 /$D191 )) -> 0.2433620677 | H191: 0 | I191: 11123363 | J191: 27306926 | K191: 38430289 | L191: 0 | M191: 0 | N191: 0 | O191: 0 | P191: 0 | Q191: 0 | R191: 0 | S191: 0 | T191: 0 | U191: 0 | V191: 0 | W191: 0
A192: B | B192: Bela Bela | C192: LIM366 | D192: 152010992 | E192: 152010992 | F192: 49629218 | G192: =IF(($D192 =0),0,($F192 /$D192 )) -> 0.3264844032 | H192: 2793887 | I192: 19560336 | J192: 27274995 | K192: 49629218 | L192: 0 | M192: 0 | N192: 0 | O192: 0 | P192: 0 | Q192: 0 | R192: 0 | S192: 0 | T192: 0 | U192: 0 | V192: 0 | W192: 0
A193: B | B193: Mogalakwena | C193: LIM367 | D193: 440755800 | E193: 440755800 | F193: 128826567 | G193: =IF(($D193 =0),0,($F193 /$D193 )) -> 0.2922855854 | H193: 46339182 | I193: 69927583 | J193: 12559802 | K193: 128826567 | L193: 0 | M193: 0 | N193: 0 | O193: 0 | P193: 0 | Q193: 0 | R193: 0 | S193: 0 | T193: 0 | U193: 0 | V193: 0 | W193: 0
A194: B | B194: Modimolle-Mookgopong | C194: LIM368 | D194: 202997292 | E194: 202997292 | F194: 19408888 | G194: =IF(($D194 =0),0,($F194 /$D194 )) -> 0.09561156116 | H194: 3622789 | I194: 7223298 | J194: 8562801 | K194: 19408888 | L194: 0 | M194: 0 | N194: 0 | O194: 0 | P194: 0 | Q194: 0 | R194: 0 | S194: 0 | T194: 0 | U194: 0 | V194: 0 | W194: 0
A195: C | B195: Waterberg | C195: DC36 | D195: 100000 | E195: 100000 | F195: 0 | G195: =IF(($D195 =0),0,($F195 /$D195 )) -> 0 | H195: 0 | I195: 0 | J195: 0 | K195: 0 | L195: 0 | M195: 0 | N195: 0 | O195: 0 | P195: 0 | Q195: 0 | R195: 0 | S195: 0 | T195: 0 | U195: 0 | V195: 0 | W195: 0
B196: Total Waterberg | D196: =SUM(D190:D195) -> 1063258081 | E196: =SUM(E190:E195) -> 1063258081 | F196: =SUM(F190:F195) -> 252929729 | G196: =IF(($D196 =0),0,($F196 /$D196 )) -> 0.2378817838 | H196: =SUM(H190:H195) -> 56542659 | I196: =SUM(I190:I195) -> 119022816 | J196: =SUM(J190:J195) -> 77364254 | K196: =SUM(K190:K195) -> 252929729 | L196: =SUM(L190:L195) -> 0 | M196: =SUM(M190:M195) -> 0 | N196: =SUM(N190:N195) -> 0 | O196: =SUM(O190:O195) -> 0 | P196: =SUM(P190:P195) -> 0 | Q196: =SUM(Q190:Q195) -> 0 | R196: =SUM(R190:R195) -> 0 | S196: =SUM(S190:S195) -> 0 | T196: =SUM(T190:T195) -> 0 | U196: =SUM(U190:U195) -> 0 | V196: =SUM(V190:V195) -> 0 | W196: =SUM(W190:W195) -> 0
A197: B | B197: Ephraim Mogale | C197: LIM471 | D197: 149431968 | E197: 149431968 | F197: 21553423 | G197: =IF(($D197 =0),0,($F197 /$D197 )) -> 0.1442356899 | H197: 0 | I197: 14613895 | J197: 6939528 | K197: 21553423 | L197: 0 | M197: 0 | N197: 0 | O197: 0 | P197: 0 | Q197: 0 | R197: 0 | S197: 0 | T197: 0 | U197: 0 | V197: 0 | W197: 0
A198: B | B198: Elias Motsoaledi | C198: LIM472 | D198: 98829145 | E198: 98829145 | F198: 32486888 | G198: =IF(($D198 =0),0,($F198 /$D198 )) -> 0.3287176875 | H198: 20104908 | I198: 1729671 | J198: 10652309 | K198: 32486888 | L198: 0 | M198: 0 | N198: 0 | O198: 0 | P198: 0 | Q198: 0 | R198: 0 | S198: 0 | T198: 0 | U198: 0 | V198: 0 | W198: 0
A199: B | B199: Makhuduthamaga | C199: LIM473 | D199: 161742930 | E199: 161742930 | F199: 30361921 | G199: =IF(($D199 =0),0,($F199 /$D199 )) -> 0.1877171447 | H199: 10166130 | I199: 8972189 | J199: 11223602 | K199: 30361921 | L199: 0 | M199: 0 | N199: 0 | O199: 0 | P199: 0 | Q199: 0 | R199: 0 | S199: 0 | T199: 0 | U199: 0 | V199: 0 | W199: 0
A200: B | B200: Tubatse Fetakgomo | C200: LIM476 | D200: 289401068 | E200: 289401068 | F200: 53040121 | G200: =IF(($D200 =0),0,($F200 /$D200 )) -> 0.1832754847 | H200: 26274400 | I200: 0 | J200: 26765721 | K200: 53040121 | L200: 0 | M200: 0 | N200: 0 | O200: 0 | P200: 0 | Q200: 0 | R200: 0 | S200: 0 | T200: 0 | U200: 0 | V200: 0 | W200: 0
A201: C | B201: Sekhukhune | C201: DC47 | D201: 453099537 | E201: 453099537 | F201: 99282023 | G201: =IF(($D201 =0),0,($F201 /$D201 )) -> 0.2191174673 | H201: 1293000 | I201: 44629498 | J201: 53359525 | K201: 99282023 | L201: 0 | M201: 0 | N201: 0 | O201: 0 | P201: 0 | Q201: 0 | R201: 0 | S201: 0 | T201: 0 | U201: 0 | V201: 0 | W201: 0
B202: Total Sekhukhune | D202: =SUM(D197:D201) -> 1152504648 | E202: =SUM(E197:E201) -> 1152504648 | F202: =SUM(F197:F201) -> 236724376 | G202: =IF(($D202 =0),0,($F202 /$D202 )) -> 0.2053999317 | H202: =SUM(H197:H201) -> 57838438 | I202: =SUM(I197:I201) -> 69945253 | J202: =SUM(J197:J201) -> 108940685 | K202: =SUM(K197:K201) -> 236724376 | L202: =SUM(L197:L201) -> 0 | M202: =SUM(M197:M201) -> 0 | N202: =SUM(N197:N201) -> 0 | O202: =SUM(O197:O201) -> 0 | P202: =SUM(P197:P201) -> 0 | Q202: =SUM(Q197:Q201) -> 0 | R202: =SUM(R197:R201) -> 0 | S202: =SUM(S197:S201) -> 0 | T202: =SUM(T197:T201) -> 0 | U202: =SUM(U197:U201) -> 0 | V202: =SUM(V197:V201) -> 0 | W202: =SUM(W197:W201) -> 0
B203: Total Limpopo | D203: =SUM(D171:D176,D178:D182,D184:D188,D190:D195,D197:D201) -> 6735023895 | E203: =SUM(E171:E176,E178:E182,E184:E188,E190:E195,E197:E201) -> 6743719547 | F203: =SUM(F171:F176,F178:F182,F184:F188,F190:F195,F197:F201) -> 1433226600 | G203: =IF(($D203 =0),0,($F203 /$D203 )) -> 0.2128020067 | H203: =SUM(H171:H176,H178:H182,H184:H188,H190:H195,H197:H201) -> 352097442 | I203: =SUM(I171:I176,I178:I182,I184:I188,I190:I195,I197:I201) -> 514928886 | J203: =SUM(J171:J176,J178:J182,J184:J188,J190:J195,J197:J201) -> 566200272 | K203: =SUM(K171:K176,K178:K182,K184:K188,K190:K195,K197:K201) -> 1433226600 | L203: =SUM(L171:L176,L178:L182,L184:L188,L190:L195,L197:L201) -> 0 | M203: =SUM(M171:M176,M178:M182,M184:M188,M190:M195,M197:M201) -> 0 | N203: =SUM(N171:N176,N178:N182,N184:N188,N190:N195,N197:N201) -> 0 | O203: =SUM(O171:O176,O178:O182,O184:O188,O190:O195,O197:O201) -> 0 | P203: =SUM(P171:P176,P178:P182,P184:P188,P190:P195,P197:P201) -> 0 | Q203: =SUM(Q171:Q176,Q178:Q182,Q184:Q188,Q190:Q195,Q197:Q201) -> 0 | R203: =SUM(R171:R176,R178:R182,R184:R188,R190:R195,R197:R201) -> 0 | S203: =SUM(S171:S176,S178:S182,S184:S188,S190:S195,S197:S201) -> 0 | T203: =SUM(T171:T176,T178:T182,T184:T188,T190:T195,T197:T201) -> 0 | U203: =SUM(U171:U176,U178:U182,U184:U188,U190:U195,U197:U201) -> 0 | V203: =SUM(V171:V176,V178:V182,V184:V188,V190:V195,V197:V201) -> 0 | W203: =SUM(W171:W176,W178:W182,W184:W188,W190:W195,W197:W201) -> 0
B205: MPUMALANGA
A206: B | B206: Albert Luthuli | C206: MP301 | D206: 435803870 | E206: 435803870 | F206: 79443315 | G206: =IF(($D206 =0),0,($F206 /$D206 )) -> 0.18229144 | H206: 11180940 | I206: 30075577 | J206: 38186798 | K206: 79443315 | L206: 0 | M206: 0 | N206: 0 | O206: 0 | P206: 0 | Q206: 0 | R206: 0 | S206: 0 | T206: 0 | U206: 0 | V206: 0 | W206: 0
A207: B | B207: Msukaligwa | C207: MP302 | D207: 162092949 | E207: 162092949 | F207: 43885146 | G207: =IF(($D207 =0),0,($F207 /$D207 )) -> 0.270740623 | H207: 9479577 | I207: 9384347 | J207: 25021222 | K207: 43885146 | L207: 0 | M207: 0 | N207: 0 | O207: 0 | P207: 0 | Q207: 0 | R207: 0 | S207: 0 | T207: 0 | U207: 0 | V207: 0 | W207: 0
... 127 more rows
